Department Family,Entity,Date Paid,Expense Type,Expense Area,Supplier,Transaction Number,Amount (�),Supplier VAT Registration Number
BIS,Met Office,10/11/2020,04 CONTRACTORS,BUSINESS GROUP,SOLOS CONSULTANTS LTD,448644,8032.68,812035476
BIS,Met Office,12/11/2020,11 SERVICES,BUSINESS GROUP,SPOKE (INTERACTIVE) LTD,448750,700,840156451
BIS,Met Office,17/11/2020,06 ACCOMMODATION,CHIEF FINANCIAL OFFICER,A & J GARDEN SERVICES LTD,448850,55,190817003
BIS,Met Office,17/11/2020,06 ACCOMMODATION,CHIEF FINANCIAL OFFICER,A & J GARDEN SERVICES LTD,448850,72,190817003
BIS,Met Office,17/11/2020,06 ACCOMMODATION,CHIEF FINANCIAL OFFICER,A & J GARDEN SERVICES LTD,448850,78,190817003
BIS,Met Office,17/11/2020,06 ACCOMMODATION,CHIEF FINANCIAL OFFICER,A & J GARDEN SERVICES LTD,448850,78,190817003
BIS,Met Office,17/11/2020,06 ACCOMMODATION,CHIEF FINANCIAL OFFICER,A & J GARDEN SERVICES LTD,448850,78,190817003
BIS,Met Office,17/11/2020,06 ACCOMMODATION,CHIEF FINANCIAL OFFICER,A & J GARDEN SERVICES LTD,448850,78,190817003
BIS,Met Office,17/11/2020,06 ACCOMMODATION,CHIEF FINANCIAL OFFICER,A & J GARDEN SERVICES LTD,448850,78,190817003
BIS,Met Office,17/11/2020,06 ACCOMMODATION,CHIEF FINANCIAL OFFICER,A & J GARDEN SERVICES LTD,448850,78,190817003
BIS,Met Office,17/11/2020,06 ACCOMMODATION,CHIEF FINANCIAL OFFICER,A & J GARDEN SERVICES LTD,448850,100,190817003
BIS,Met Office,17/11/2020,06 ACCOMMODATION,CHIEF FINANCIAL OFFICER,A & J GARDEN SERVICES LTD,448850,100,190817003
BIS,Met Office,17/11/2020,06 ACCOMMODATION,CHIEF FINANCIAL OFFICER,A & J GARDEN SERVICES LTD,448850,100,190817003
BIS,Met Office,17/11/2020,06 ACCOMMODATION,CHIEF FINANCIAL OFFICER,A & J GARDEN SERVICES LTD,448850,100,190817003
BIS,Met Office,17/11/2020,06 ACCOMMODATION,CHIEF FINANCIAL OFFICER,A & J GARDEN SERVICES LTD,448850,100,190817003
BIS,Met Office,17/11/2020,06 ACCOMMODATION,CHIEF FINANCIAL OFFICER,A & J GARDEN SERVICES LTD,448850,165,190817003
BIS,Met Office,17/11/2020,06 ACCOMMODATION,CHIEF FINANCIAL OFFICER,A & J GARDEN SERVICES LTD,448850,200,190817003
BIS,Met Office,10/11/2020,06 ACCOMMODATION,CHIEF FINANCIAL OFFICER,ABOVE THE REST COMMERCIAL CLEANING LTD,448578,565,166969348
BIS,Met Office,17/11/2020,11 SERVICES,CHIEF FINANCIAL OFFICER,ADAM PHONES LTD,448900,353.4,538877093
BIS,Met Office,17/11/2020,11 SERVICES,CHIEF FINANCIAL OFFICER,ALLSTAR BUSINESS SOLUTIONS LTD,449015,1421.66,747880191
BIS,Met Office,26/11/2020,11 SERVICES,CHIEF FINANCIAL OFFICER,ALLSTAR BUSINESS SOLUTIONS LTD,449316,1660.98,747880191
BIS,Met Office,05/11/2020,13 MISCELLANEOUS,CHIEF FINANCIAL OFFICER,ANTRIM HILLS SPRING WATER CO LTD,448469,27,517173455
BIS,Met Office,17/11/2020,11 SERVICES,CHIEF FINANCIAL OFFICER,ANVIL MOBILE LIMITED,448869,29.58,981686175
BIS,Met Office,17/11/2020,11 SERVICES,CHIEF FINANCIAL OFFICER,ANVIL MOBILE LIMITED,448869,34.85,981686175
BIS,Met Office,17/11/2020,11 SERVICES,CHIEF FINANCIAL OFFICER,ANVIL MOBILE LIMITED,448869,82.6,981686175
BIS,Met Office,17/11/2020,11 SERVICES,CHIEF FINANCIAL OFFICER,ANVIL MOBILE LIMITED,448869,98.6,981686175
BIS,Met Office,17/11/2020,11 SERVICES,CHIEF FINANCIAL OFFICER,ANVIL MOBILE LIMITED,448869,111.3,981686175
BIS,Met Office,05/11/2020,11 SERVICES,CHIEF FINANCIAL OFFICER,APPLE CENTRAL TAXIS,448528,130,449238720
BIS,Met Office,24/11/2020,06 ACCOMMODATION,CHIEF FINANCIAL OFFICER,BIDVEST NOONAN UK LTD,448399,-1159.83,GB847176988
BIS,Met Office,24/11/2020,06 ACCOMMODATION,CHIEF FINANCIAL OFFICER,BIDVEST NOONAN UK LTD,449131,387.16,GB847176988
BIS,Met Office,24/11/2020,06 ACCOMMODATION,CHIEF FINANCIAL OFFICER,BIDVEST NOONAN UK LTD,449132,871.43,GB847176988
BIS,Met Office,17/11/2020,06 ACCOMMODATION,CHIEF FINANCIAL OFFICER,Biffa Waste Services Ltd,448858,55.13,537911627
BIS,Met Office,26/11/2020,06 ACCOMMODATION,CHIEF FINANCIAL OFFICER,Biffa Waste Services Ltd,449455,55.13,537911627
BIS,Met Office,26/11/2020,06 ACCOMMODATION,CHIEF FINANCIAL OFFICER,Biffa Waste Services Ltd,449449,61.1,537911627
BIS,Met Office,26/11/2020,06 ACCOMMODATION,CHIEF FINANCIAL OFFICER,Biffa Waste Services Ltd,449450,66.95,537911627
BIS,Met Office,26/11/2020,06 ACCOMMODATION,CHIEF FINANCIAL OFFICER,Biffa Waste Services Ltd,449447,97.11,537911627
BIS,Met Office,26/11/2020,06 ACCOMMODATION,CHIEF FINANCIAL OFFICER,Biffa Waste Services Ltd,447819,142.55,537911627
BIS,Met Office,26/11/2020,06 ACCOMMODATION,CHIEF FINANCIAL OFFICER,Biffa Waste Services Ltd,448400,230,537911627
BIS,Met Office,26/11/2020,06 ACCOMMODATION,CHIEF FINANCIAL OFFICER,Biffa Waste Services Ltd,449452,378.04,537911627
BIS,Met Office,26/11/2020,06 ACCOMMODATION,CHIEF FINANCIAL OFFICER,Biffa Waste Services Ltd,449453,540.02,537911627
BIS,Met Office,26/11/2020,06 ACCOMMODATION,CHIEF FINANCIAL OFFICER,Biffa Waste Services Ltd,449448,563.55,537911627
BIS,Met Office,24/11/2020,06 ACCOMMODATION,CHIEF FINANCIAL OFFICER,BRITISH GAS TRADING LTD,448208,-17.01,684966762
BIS,Met Office,24/11/2020,06 ACCOMMODATION,CHIEF FINANCIAL OFFICER,BRITISH GAS TRADING LTD,449209,15.06,684966762
BIS,Met Office,24/11/2020,06 ACCOMMODATION,CHIEF FINANCIAL OFFICER,BRITISH GAS TRADING LTD,449208,5649.02,684966762
BIS,Met Office,03/11/2020,11 SERVICES,CHIEF FINANCIAL OFFICER,BT PLC,448260,-250.78,245719348
BIS,Met Office,26/11/2020,11 SERVICES,CHIEF FINANCIAL OFFICER,BT PLC,449430,921.12,245719348
BIS,Met Office,05/11/2020,11 SERVICES,CHIEF FINANCIAL OFFICER,BT PLC,448470,1153.15,245719348
BIS,Met Office,03/11/2020,11 SERVICES,CHIEF FINANCIAL OFFICER,BT PLC,448321,12820.91,245719348
BIS,Met Office,10/11/2020,06 ACCOMMODATION,CHIEF FINANCIAL OFFICER,CALOR GAS LIMITED,448322,34.25,207610984
BIS,Met Office,10/11/2020,06 ACCOMMODATION,CHIEF FINANCIAL OFFICER,CALOR GAS LIMITED,448341,34.25,207610984
BIS,Met Office,19/11/2020,13 MISCELLANEOUS,CHIEF FINANCIAL OFFICER,CANON UK LTD,449006,3.5,523797128
BIS,Met Office,19/11/2020,13 MISCELLANEOUS,CHIEF FINANCIAL OFFICER,CANON UK LTD,449006,7.1,523797128
BIS,Met Office,19/11/2020,13 MISCELLANEOUS,CHIEF FINANCIAL OFFICER,CANON UK LTD,449006,15.59,523797128
BIS,Met Office,19/11/2020,13 MISCELLANEOUS,CHIEF FINANCIAL OFFICER,CANON UK LTD,449006,17.15,523797128
BIS,Met Office,26/11/2020,13 MISCELLANEOUS,CHIEF FINANCIAL OFFICER,CANON UK LTD,449180,23.16,523797128
BIS,Met Office,19/11/2020,13 MISCELLANEOUS,CHIEF FINANCIAL OFFICER,CANON UK LTD,449006,28.08,523797128
BIS,Met Office,19/11/2020,13 MISCELLANEOUS,CHIEF FINANCIAL OFFICER,CANON UK LTD,449006,29.21,523797128
BIS,Met Office,26/11/2020,13 MISCELLANEOUS,CHIEF FINANCIAL OFFICER,CANON UK LTD,449180,89.74,523797128
BIS,Met Office,26/11/2020,13 MISCELLANEOUS,CHIEF FINANCIAL OFFICER,CANON UK LTD,449180,89.74,523797128
BIS,Met Office,26/11/2020,13 MISCELLANEOUS,CHIEF FINANCIAL OFFICER,CANON UK LTD,449180,89.74,523797128
BIS,Met Office,26/11/2020,13 MISCELLANEOUS,CHIEF FINANCIAL OFFICER,CANON UK LTD,449180,89.74,523797128
BIS,Met Office,26/11/2020,13 MISCELLANEOUS,CHIEF FINANCIAL OFFICER,CANON UK LTD,449454,103.84,523797128
BIS,Met Office,26/11/2020,13 MISCELLANEOUS,CHIEF FINANCIAL OFFICER,CANON UK LTD,449180,179.48,523797128
BIS,Met Office,19/11/2020,13 MISCELLANEOUS,CHIEF FINANCIAL OFFICER,CANON UK LTD,449006,310.26,523797128
BIS,Met Office,26/11/2020,13 MISCELLANEOUS,CHIEF FINANCIAL OFFICER,CANON UK LTD,449456,410.89,523797128
BIS,Met Office,24/11/2020,13 MISCELLANEOUS,CHIEF FINANCIAL OFFICER,CANON UK LTD,449179,949.14,523797128
BIS,Met Office,26/11/2020,13 MISCELLANEOUS,CHIEF FINANCIAL OFFICER,CANON UK LTD,449180,2764.58,523797128
BIS,Met Office,17/11/2020,06 ACCOMMODATION,CHIEF FINANCIAL OFFICER,CARDIFF EXECUTIVE CENTRE LTD,448903,2470,864497378
BIS,Met Office,12/11/2020,06 ACCOMMODATION,CHIEF FINANCIAL OFFICER,CBRE,448652,3749.42,863613615
BIS,Met Office,12/11/2020,06 ACCOMMODATION,CHIEF FINANCIAL OFFICER,CBRE,448866,3749.42,863613615
BIS,Met Office,03/11/2020,06 ACCOMMODATION,CHIEF FINANCIAL OFFICER,CBRE MANAGED SERVICES LTD,448403,691.79,853936883
BIS,Met Office,03/11/2020,06 ACCOMMODATION,CHIEF FINANCIAL OFFICER,CBRE MANAGED SERVICES LTD,448402,39784.11,853936883
BIS,Met Office,03/11/2020,08 SOFTWARE LICENCES,CHIEF FINANCIAL OFFICER,CEMAR,448420,90,915042161
BIS,Met Office,26/11/2020,08 SOFTWARE LICENCES,CHIEF FINANCIAL OFFICER,CEMAR,449436,90,915042161
BIS,Met Office,26/11/2020,08 SOFTWARE LICENCES,CHIEF FINANCIAL OFFICER,CEMAR,449309,450,915042161
BIS,Met Office,24/11/2020,06 ACCOMMODATION,CHIEF FINANCIAL OFFICER,CORONA ENERGY LTD,449194,811.4,577704800
BIS,Met Office,24/11/2020,06 ACCOMMODATION,CHIEF FINANCIAL OFFICER,CORONA ENERGY LTD,449195,15457.45,577704800
BIS,Met Office,05/11/2020,06 ACCOMMODATION,CHIEF FINANCIAL OFFICER,COUNTRYWIDE GROUNDS MAINTENANCE LTD,448521,-265.57,611731279
BIS,Met Office,05/11/2020,06 ACCOMMODATION,CHIEF FINANCIAL OFFICER,COUNTRYWIDE GROUNDS MAINTENANCE LTD,448519,67.31,611731279
BIS,Met Office,24/11/2020,06 ACCOMMODATION,CHIEF FINANCIAL OFFICER,COUNTRYWIDE GROUNDS MAINTENANCE LTD,449101,67.31,611731279
BIS,Met Office,05/11/2020,06 ACCOMMODATION,CHIEF FINANCIAL OFFICER,COUNTRYWIDE GROUNDS MAINTENANCE LTD,448519,68.82,611731279
BIS,Met Office,24/11/2020,06 ACCOMMODATION,CHIEF FINANCIAL OFFICER,COUNTRYWIDE GROUNDS MAINTENANCE LTD,449101,68.82,611731279
BIS,Met Office,24/11/2020,06 ACCOMMODATION,CHIEF FINANCIAL OFFICER,COUNTRYWIDE GROUNDS MAINTENANCE LTD,449101,69.39,611731279
BIS,Met Office,05/11/2020,06 ACCOMMODATION,CHIEF FINANCIAL OFFICER,COUNTRYWIDE GROUNDS MAINTENANCE LTD,448519,70.71,611731279
BIS,Met Office,24/11/2020,06 ACCOMMODATION,CHIEF FINANCIAL OFFICER,COUNTRYWIDE GROUNDS MAINTENANCE LTD,449101,70.71,611731279
BIS,Met Office,24/11/2020,06 ACCOMMODATION,CHIEF FINANCIAL OFFICER,COUNTRYWIDE GROUNDS MAINTENANCE LTD,449101,71.96,611731279
BIS,Met Office,05/11/2020,06 ACCOMMODATION,CHIEF FINANCIAL OFFICER,COUNTRYWIDE GROUNDS MAINTENANCE LTD,448520,77.67,611731279
BIS,Met Office,24/11/2020,06 ACCOMMODATION,CHIEF FINANCIAL OFFICER,COUNTRYWIDE GROUNDS MAINTENANCE LTD,449101,80.17,611731279
BIS,Met Office,24/11/2020,06 ACCOMMODATION,CHIEF FINANCIAL OFFICER,COUNTRYWIDE GROUNDS MAINTENANCE LTD,449101,80.99,611731279
BIS,Met Office,24/11/2020,06 ACCOMMODATION,CHIEF FINANCIAL OFFICER,COUNTRYWIDE GROUNDS MAINTENANCE LTD,449101,81.68,611731279
BIS,Met Office,24/11/2020,06 ACCOMMODATION,CHIEF FINANCIAL OFFICER,COUNTRYWIDE GROUNDS MAINTENANCE LTD,449101,96.63,611731279
BIS,Met Office,24/11/2020,06 ACCOMMODATION,CHIEF FINANCIAL OFFICER,COUNTRYWIDE GROUNDS MAINTENANCE LTD,449101,100.74,611731279
BIS,Met Office,24/11/2020,06 ACCOMMODATION,CHIEF FINANCIAL OFFICER,COUNTRYWIDE GROUNDS MAINTENANCE LTD,449101,100.74,611731279
BIS,Met Office,24/11/2020,06 ACCOMMODATION,CHIEF FINANCIAL OFFICER,COUNTRYWIDE GROUNDS MAINTENANCE LTD,449101,117.18,611731279
BIS,Met Office,05/11/2020,06 ACCOMMODATION,CHIEF FINANCIAL OFFICER,COUNTRYWIDE GROUNDS MAINTENANCE LTD,448519,124.82,611731279
BIS,Met Office,24/11/2020,06 ACCOMMODATION,CHIEF FINANCIAL OFFICER,COUNTRYWIDE GROUNDS MAINTENANCE LTD,449101,130,611731279
BIS,Met Office,24/11/2020,06 ACCOMMODATION,CHIEF FINANCIAL OFFICER,COUNTRYWIDE GROUNDS MAINTENANCE LTD,449101,132.17,611731279
BIS,Met Office,24/11/2020,06 ACCOMMODATION,CHIEF FINANCIAL OFFICER,COUNTRYWIDE GROUNDS MAINTENANCE LTD,449101,133.12,611731279
BIS,Met Office,05/11/2020,06 ACCOMMODATION,CHIEF FINANCIAL OFFICER,COUNTRYWIDE GROUNDS MAINTENANCE LTD,448519,138.78,611731279
BIS,Met Office,05/11/2020,06 ACCOMMODATION,CHIEF FINANCIAL OFFICER,COUNTRYWIDE GROUNDS MAINTENANCE LTD,448519,143.92,611731279
BIS,Met Office,24/11/2020,06 ACCOMMODATION,CHIEF FINANCIAL OFFICER,COUNTRYWIDE GROUNDS MAINTENANCE LTD,449101,157.04,611731279
BIS,Met Office,05/11/2020,06 ACCOMMODATION,CHIEF FINANCIAL OFFICER,COUNTRYWIDE GROUNDS MAINTENANCE LTD,448519,161.98,611731279
BIS,Met Office,05/11/2020,06 ACCOMMODATION,CHIEF FINANCIAL OFFICER,COUNTRYWIDE GROUNDS MAINTENANCE LTD,448522,162.57,611731279
BIS,Met Office,12/11/2020,06 ACCOMMODATION,CHIEF FINANCIAL OFFICER,COUNTRYWIDE GROUNDS MAINTENANCE LTD,448760,171.9,611731279
BIS,Met Office,05/11/2020,06 ACCOMMODATION,CHIEF FINANCIAL OFFICER,COUNTRYWIDE GROUNDS MAINTENANCE LTD,448519,176.42,611731279
BIS,Met Office,05/11/2020,06 ACCOMMODATION,CHIEF FINANCIAL OFFICER,COUNTRYWIDE GROUNDS MAINTENANCE LTD,448519,193.26,611731279
BIS,Met Office,05/11/2020,06 ACCOMMODATION,CHIEF FINANCIAL OFFICER,COUNTRYWIDE GROUNDS MAINTENANCE LTD,448519,201.48,611731279
BIS,Met Office,05/11/2020,06 ACCOMMODATION,CHIEF FINANCIAL OFFICER,COUNTRYWIDE GROUNDS MAINTENANCE LTD,448519,201.48,611731279
BIS,Met Office,05/11/2020,06 ACCOMMODATION,CHIEF FINANCIAL OFFICER,COUNTRYWIDE GROUNDS MAINTENANCE LTD,448519,234.36,611731279
BIS,Met Office,05/11/2020,06 ACCOMMODATION,CHIEF FINANCIAL OFFICER,COUNTRYWIDE GROUNDS MAINTENANCE LTD,448519,235.56,611731279
BIS,Met Office,05/11/2020,06 ACCOMMODATION,CHIEF FINANCIAL OFFICER,COUNTRYWIDE GROUNDS MAINTENANCE LTD,448519,263.62,611731279
BIS,Met Office,05/11/2020,06 ACCOMMODATION,CHIEF FINANCIAL OFFICER,COUNTRYWIDE GROUNDS MAINTENANCE LTD,448519,264.34,611731279
BIS,Met Office,05/11/2020,06 ACCOMMODATION,CHIEF FINANCIAL OFFICER,COUNTRYWIDE GROUNDS MAINTENANCE LTD,448519,266.24,611731279
BIS,Met Office,05/11/2020,06 ACCOMMODATION,CHIEF FINANCIAL OFFICER,COUNTRYWIDE GROUNDS MAINTENANCE LTD,448519,266.24,611731279
BIS,Met Office,05/11/2020,06 ACCOMMODATION,CHIEF FINANCIAL OFFICER,COUNTRYWIDE GROUNDS MAINTENANCE LTD,448519,352.58,611731279
BIS,Met Office,24/11/2020,06 ACCOMMODATION,CHIEF FINANCIAL OFFICER,COUNTRYWIDE GROUNDS MAINTENANCE LTD,449101,458.12,611731279
BIS,Met Office,24/11/2020,06 ACCOMMODATION,CHIEF FINANCIAL OFFICER,COUNTRYWIDE GROUNDS MAINTENANCE LTD,449101,596.24,611731279
BIS,Met Office,05/11/2020,06 ACCOMMODATION,CHIEF FINANCIAL OFFICER,D SAYER BUILDERS,448507,910,-
BIS,Met Office,10/11/2020,11 SERVICES,CHIEF FINANCIAL OFFICER,DBS FINANCE RECEIPTS CTS,21819,-178.62,888805068
BIS,Met Office,10/11/2020,11 SERVICES,CHIEF FINANCIAL OFFICER,DBS FINANCE RECEIPTS CTS,21943,176.67,888805068
BIS,Met Office,26/11/2020,11 SERVICES,CHIEF FINANCIAL OFFICER,DIGITAL COMMUNICATIONS SYSTEMS LIMITED,449315,4258.41,GB 556 1971 19
BIS,Met Office,12/11/2020,11 SERVICES,CHIEF FINANCIAL OFFICER,DIGITAL COMMUNICATIONS SYSTEMS LIMITED,448736,4266.08,GB 556 1971 19
BIS,Met Office,17/11/2020,06 ACCOMMODATION,CHIEF FINANCIAL OFFICER,DSTL,449007,1750,888805166
BIS,Met Office,12/11/2020,13 MISCELLANEOUS,CHIEF FINANCIAL OFFICER,EAST ANGLIAN WATER COOLER CO,448781,17.6,676668178
BIS,Met Office,24/11/2020,13 MISCELLANEOUS,CHIEF FINANCIAL OFFICER,EDEN SPRINGS UK LTD,449021,396.09,232160411
BIS,Met Office,24/11/2020,06 ACCOMMODATION,CHIEF FINANCIAL OFFICER,EDF ENERGY CUSTOMERS PLC,449008,3340.96,523041202
BIS,Met Office,24/11/2020,06 ACCOMMODATION,CHIEF FINANCIAL OFFICER,EDF ENERGY CUSTOMERS PLC,449182,93818.2,523041202
BIS,Met Office,24/11/2020,06 ACCOMMODATION,CHIEF FINANCIAL OFFICER,EDF ENERGY CUSTOMERS PLC,448660,119010.7,523041202
BIS,Met Office,24/11/2020,06 ACCOMMODATION,CHIEF FINANCIAL OFFICER,EDF ENERGY CUSTOMERS PLC,448661,380905,523041202
BIS,Met Office,18/11/2020,03 STAFF COSTS T&S,CHIEF FINANCIAL OFFICER,ENTERPRISE RENT A CAR UK LTD,448976,-4816.41,215557314
BIS,Met Office,18/11/2020,03 STAFF COSTS T&S,CHIEF FINANCIAL OFFICER,ENTERPRISE RENT A CAR UK LTD,449146,-4024.14,215557314
BIS,Met Office,26/11/2020,03 STAFF COSTS T&S,CHIEF FINANCIAL OFFICER,ENTERPRISE RENT A CAR UK LTD,449462,267.26,215557314
BIS,Met Office,12/11/2020,03 STAFF COSTS T&S,CHIEF FINANCIAL OFFICER,ENTERPRISE RENT A CAR UK LTD,448845,414.1,215557314
BIS,Met Office,12/11/2020,03 STAFF COSTS T&S,CHIEF FINANCIAL OFFICER,ENTERPRISE RENT A CAR UK LTD,448846,423.64,215557314
BIS,Met Office,03/11/2020,03 STAFF COSTS T&S,CHIEF FINANCIAL OFFICER,ENTERPRISE RENT A CAR UK LTD,448405,432.25,215557314
BIS,Met Office,03/11/2020,03 STAFF COSTS T&S,CHIEF FINANCIAL OFFICER,ENTERPRISE RENT A CAR UK LTD,448404,652.3,215557314
BIS,Met Office,18/11/2020,03 STAFF COSTS T&S,CHIEF FINANCIAL OFFICER,ENTERPRISE RENT A CAR UK LTD,448977,4024.14,215557314
BIS,Met Office,18/11/2020,03 STAFF COSTS T&S,CHIEF FINANCIAL OFFICER,ENTERPRISE RENT A CAR UK LTD,449158,4816.41,215557314
BIS,Met Office,26/11/2020,06 ACCOMMODATION,CHIEF FINANCIAL OFFICER,Exeter City Council,440197,140288,142335594
BIS,Met Office,24/11/2020,11 SERVICES,CHIEF FINANCIAL OFFICER,EXPONENTIAL-E,449151,2203.74,GB798572653
BIS,Met Office,17/11/2020,06 ACCOMMODATION,CHIEF FINANCIAL OFFICER,FAIR ISLE ELECTRICITY COMPANY LTD,448905,98.7,774548783
BIS,Met Office,10/11/2020,11 SERVICES,CHIEF FINANCIAL OFFICER,FLYFORM LTD,448508,4500,237333808
BIS,Met Office,05/11/2020,11 SERVICES,CHIEF FINANCIAL OFFICER,FLYFORM LTD,448510,8955,237333808
BIS,Met Office,10/11/2020,11 SERVICES,CHIEF FINANCIAL OFFICER,FLYFORM LTD,448508,14925,237333808
BIS,Met Office,10/11/2020,11 SERVICES,CHIEF FINANCIAL OFFICER,FLYFORM LTD,448508,14925,237333808
BIS,Met Office,17/11/2020,06 ACCOMMODATION,CHIEF FINANCIAL OFFICER,FOX GROUNDS MAINTENANCE & LANDSCAPING LTD,448861,305.66,129495383
BIS,Met Office,03/11/2020,11 SERVICES,CHIEF FINANCIAL OFFICER,FSI (FM SOLUTIONS) LTD,448428,4621.94,166398173
BIS,Met Office,24/11/2020,11 SERVICES,CHIEF FINANCIAL OFFICER,FSI (FM SOLUTIONS) LTD,449190,4975,166398173
BIS,Met Office,03/11/2020,06 ACCOMMODATION,CHIEF FINANCIAL OFFICER,FUTURE CLEANING SERVICES (SW) LTD.,442437,387.96,756916489
BIS,Met Office,03/11/2020,06 ACCOMMODATION,CHIEF FINANCIAL OFFICER,FUTURE CLEANING SERVICES (SW) LTD.,443363,387.96,756916489
BIS,Met Office,17/11/2020,11 SERVICES,CHIEF FINANCIAL OFFICER,GAMMA BUSINESS COMMUNICATIONS LTD,448980,413.1,823820344
BIS,Met Office,17/11/2020,11 SERVICES,CHIEF FINANCIAL OFFICER,GAMMA TELECOM LTD,448878,210.94,823820344
BIS,Met Office,17/11/2020,11 SERVICES,CHIEF FINANCIAL OFFICER,GAMMA TELECOM LTD,448878,27205.36,823820344
BIS,Met Office,17/11/2020,06 ACCOMMODATION,CHIEF FINANCIAL OFFICER,GBC LTD,448806,89.12,859903672
BIS,Met Office,17/11/2020,06 ACCOMMODATION,CHIEF FINANCIAL OFFICER,GBC LTD,448806,100,859903672
BIS,Met Office,17/11/2020,11 SERVICES,CHIEF FINANCIAL OFFICER,GIBRALTAR NYNEX COMMUNICATIONS LTD,448807,702,NOVAT
BIS,Met Office,12/11/2020,06 ACCOMMODATION,CHIEF FINANCIAL OFFICER,GOVERNMENT PROPERTY AGENCY,448896,121.91,-
BIS,Met Office,12/11/2020,06 ACCOMMODATION,CHIEF FINANCIAL OFFICER,GOVERNMENT PROPERTY AGENCY,448898,279.66,-
BIS,Met Office,12/11/2020,06 ACCOMMODATION,CHIEF FINANCIAL OFFICER,GOVERNMENT PROPERTY AGENCY,448895,549.62,-
BIS,Met Office,12/11/2020,06 ACCOMMODATION,CHIEF FINANCIAL OFFICER,GOVERNMENT PROPERTY AGENCY,448897,901.5,-
BIS,Met Office,12/11/2020,06 ACCOMMODATION,CHIEF FINANCIAL OFFICER,GOVERNMENT PROPERTY AGENCY,448906,1926.88,-
BIS,Met Office,03/11/2020,06 ACCOMMODATION,CHIEF FINANCIAL OFFICER,GROSVENOR SYSTEMS LTD,446711,433.2,342873151
BIS,Met Office,03/11/2020,06 ACCOMMODATION,CHIEF FINANCIAL OFFICER,GROSVENOR SYSTEMS LTD,446712,6538.14,342873151
BIS,Met Office,12/11/2020,11 SERVICES,CHIEF FINANCIAL OFFICER,HARPER MACLEOD LLP,448748,24.8,762130557
BIS,Met Office,05/11/2020,06 ACCOMMODATION,CHIEF FINANCIAL OFFICER,Health & Safety Laboratory,448324,26700,888810177
BIS,Met Office,17/11/2020,11 SERVICES,CHIEF FINANCIAL OFFICER,INTEROUTE COMMUNICATIONS LIMITED,449011,4931.94,832 7071 39
BIS,Met Office,18/11/2020,06 ACCOMMODATION,CHIEF FINANCIAL OFFICER,JAMES & MARCIA BENJAMIN,448479,520,-
BIS,Met Office,24/11/2020,11 SERVICES,CHIEF FINANCIAL OFFICER,JERSEY TELECOM,449020,1283.61,NOTVATREG
BIS,Met Office,24/11/2020,06 ACCOMMODATION,CHIEF FINANCIAL OFFICER,Landmark Information Group Ltd,448512,-19.84,634509735
BIS,Met Office,24/11/2020,03 STAFF COSTS T&S,CHIEF FINANCIAL OFFICER,LEASEDRIVE RENTAL MANAGEMENT LTD,449153,233.47,733546040
BIS,Met Office,24/11/2020,03 STAFF COSTS T&S,CHIEF FINANCIAL OFFICER,LEASEDRIVE RENTAL MANAGEMENT LTD,449152,870.33,733546040
BIS,Met Office,12/11/2020,11 SERVICES,CHIEF FINANCIAL OFFICER,LICENCE BUREAU LTD,448847,88,820219467
BIS,Met Office,26/11/2020,06 ACCOMMODATION,CHIEF FINANCIAL OFFICER,LITTLEWOOD FENCING LTD,449314,1599.91,683187895
BIS,Met Office,12/11/2020,11 SERVICES,CHIEF FINANCIAL OFFICER,MANX TELECOM LTD,448732,53.21,3291912
BIS,Met Office,12/11/2020,11 SERVICES,CHIEF FINANCIAL OFFICER,MANX TELECOM LTD,448733,53.21,3291912
BIS,Met Office,12/11/2020,11 SERVICES,CHIEF FINANCIAL OFFICER,MAWASEM LTD,448870,13384.99,197694731
BIS,Met Office,05/11/2020,11 SERVICES,CHIEF FINANCIAL OFFICER,MITIE SECURITY LTD,448516,686.2,416706654
BIS,Met Office,10/11/2020,11 SERVICES,CHIEF FINANCIAL OFFICER,MITIE SECURITY LTD,448517,1350.3,416706654
BIS,Met Office,05/11/2020,11 SERVICES,CHIEF FINANCIAL OFFICER,MITIE SECURITY LTD,448478,10263.36,416706654
BIS,Met Office,05/11/2020,11 SERVICES,CHIEF FINANCIAL OFFICER,MITIE SECURITY LTD,448477,20526.35,416706654
BIS,Met Office,19/11/2020,06 ACCOMMODATION,CHIEF FINANCIAL OFFICER,MORAY COUNCIL,449144,81.23,663755506
BIS,Met Office,10/11/2020,11 SERVICES,CHIEF FINANCIAL OFFICER,Morton Fraser LLP,448624,132,269129336
BIS,Met Office,24/11/2020,07 EQUIPMENT,CHIEF FINANCIAL OFFICER,NATWEST COMMERCIAL CARDS DIVISION,449259,8672.02,N/A
BIS,Met Office,12/11/2020,FIXTURE & FITTINGS,CHIEF FINANCIAL OFFICER,NMCN PLC,448798,41695.02,GB648191516
BIS,Met Office,24/11/2020,13 MISCELLANEOUS,CHIEF FINANCIAL OFFICER,NORSCOTT VENDING SERVICES LTD,449005,85,751402071
BIS,Met Office,17/11/2020,06 ACCOMMODATION,CHIEF FINANCIAL OFFICER,Northern Ireland Water,448853,270,898746537
BIS,Met Office,17/11/2020,06 ACCOMMODATION,CHIEF FINANCIAL OFFICER,OCS Group UK Limited,448978,18462.81,GB238034379
BIS,Met Office,17/11/2020,06 ACCOMMODATION,CHIEF FINANCIAL OFFICER,OCS Group UK Limited,448978,109250.39,GB238034379
BIS,Met Office,26/11/2020,04 CONTRACTORS,CHIEF FINANCIAL OFFICER,OUTSOURCE UK LIMITED,449463,3396.96,576118722
BIS,Met Office,26/11/2020,04 CONTRACTORS,CHIEF FINANCIAL OFFICER,OUTSOURCE UK LIMITED,449464,5095.44,576118722
BIS,Met Office,05/11/2020,04 CONTRACTORS,CHIEF FINANCIAL OFFICER,OUTSOURCE UK LIMITED,448442,6564,576118722
BIS,Met Office,05/11/2020,04 CONTRACTORS,CHIEF FINANCIAL OFFICER,OUTSOURCE UK LIMITED,448464,8924.6,576118722
BIS,Met Office,03/11/2020,13 MISCELLANEOUS,CHIEF FINANCIAL OFFICER,POSTURITE (UK) LTD,448398,99.17,583565114
BIS,Met Office,03/11/2020,13 MISCELLANEOUS,CHIEF FINANCIAL OFFICER,POSTURITE (UK) LTD,448320,169.85,583565114
BIS,Met Office,24/11/2020,06 ACCOMMODATION,CHIEF FINANCIAL OFFICER,POWER NI ENERGY LTD,449019,509.63,617518142
BIS,Met Office,03/11/2020,04 CONTRACTORS,CHIEF FINANCIAL OFFICER,QUALSERV CONSULTING LTD,448411,4873.96,719067718
BIS,Met Office,03/11/2020,11 SERVICES,CHIEF FINANCIAL OFFICER,QUANTUM MANAGEMENT (UK) LTD,448425,390,781819690
BIS,Met Office,26/11/2020,06 ACCOMMODATION,CHIEF FINANCIAL OFFICER,R F BLOUNT AND SONS LTD,449421,198,344205779
BIS,Met Office,10/11/2020,06 ACCOMMODATION,CHIEF FINANCIAL OFFICER,R F BLOUNT AND SONS LTD,448585,240,344205779
BIS,Met Office,12/11/2020,03 STAFF COSTS T&S,CHIEF FINANCIAL OFFICER,RAINBOW CITY TAXIS,448761,20.3,724295039
BIS,Met Office,12/11/2020,06 ACCOMMODATION,CHIEF FINANCIAL OFFICER,RAISE TELECOMS LTD,448809,1300,166016521
BIS,Met Office,26/11/2020,06 ACCOMMODATION,CHIEF FINANCIAL OFFICER,REDACTED � PERSONAL DATA,449365,21,655585009
BIS,Met Office,26/11/2020,06 ACCOMMODATION,CHIEF FINANCIAL OFFICER,REDACTED � PERSONAL DATA,449365,50,655585009
BIS,Met Office,26/11/2020,06 ACCOMMODATION,CHIEF FINANCIAL OFFICER,REDACTED � PERSONAL DATA,449365,50,655585009
BIS,Met Office,26/11/2020,06 ACCOMMODATION,CHIEF FINANCIAL OFFICER,REDACTED � PERSONAL DATA,449365,100,655585009
BIS,Met Office,26/11/2020,06 ACCOMMODATION,CHIEF FINANCIAL OFFICER,REDACTED � PERSONAL DATA,449365,100,655585009
BIS,Met Office,05/11/2020,06 ACCOMMODATION,CHIEF FINANCIAL OFFICER,REDACTED � PERSONAL DATA,448515,150,426523462
BIS,Met Office,26/11/2020,06 ACCOMMODATION,CHIEF FINANCIAL OFFICER,REDACTED � PERSONAL DATA,449365,200,655585009
BIS,Met Office,26/11/2020,06 ACCOMMODATION,CHIEF FINANCIAL OFFICER,REDACTED � PERSONAL DATA,449365,200,655585009
BIS,Met Office,26/11/2020,06 ACCOMMODATION,CHIEF FINANCIAL OFFICER,REDACTED � PERSONAL DATA,449367,220,655585009
BIS,Met Office,24/11/2020,06 ACCOMMODATION,CHIEF FINANCIAL OFFICER,REDACTED � PERSONAL DATA,449107,250,426523462
BIS,Met Office,26/11/2020,06 ACCOMMODATION,CHIEF FINANCIAL OFFICER,REDACTED � PERSONAL DATA,449458,281,NOT REG'D
BIS,Met Office,26/11/2020,06 ACCOMMODATION,CHIEF FINANCIAL OFFICER,REDACTED � PERSONAL DATA,449364,365,750148646
BIS,Met Office,26/11/2020,06 ACCOMMODATION,CHIEF FINANCIAL OFFICER,REDACTED � PERSONAL DATA,449320,420,426523462
BIS,Met Office,10/11/2020,11 SERVICES,CHIEF FINANCIAL OFFICER,REDACTED � PERSONAL DATA,448473,447,729159704
BIS,Met Office,12/11/2020,06 ACCOMMODATION,CHIEF FINANCIAL OFFICER,REDACTED � PERSONAL DATA,448672,511,426523462
BIS,Met Office,24/11/2020,06 ACCOMMODATION,CHIEF FINANCIAL OFFICER,REDACTED � PERSONAL DATA,449108,580,426523462
BIS,Met Office,17/11/2020,06 ACCOMMODATION,CHIEF FINANCIAL OFFICER,REDACTED � PERSONAL DATA,448848,600,NOTVATREGD
BIS,Met Office,24/11/2020,06 ACCOMMODATION,CHIEF FINANCIAL OFFICER,REDACTED � PERSONAL DATA,449000,700,-
BIS,Met Office,24/11/2020,06 ACCOMMODATION,CHIEF FINANCIAL OFFICER,REDACTED � PERSONAL DATA,449177,980,426523462
BIS,Met Office,24/11/2020,06 ACCOMMODATION,CHIEF FINANCIAL OFFICER,REDACTED � PERSONAL DATA,449129,1150,426523462
BIS,Met Office,26/11/2020,06 ACCOMMODATION,CHIEF FINANCIAL OFFICER,REIDHAVEN ESTATE,449002,635,267190641
BIS,Met Office,24/11/2020,06 ACCOMMODATION,CHIEF FINANCIAL OFFICER,RIVER RIDGE,449135,135.51,176286083
BIS,Met Office,17/11/2020,06 ACCOMMODATION,CHIEF FINANCIAL OFFICER,SAFESTORE LTD,448979,2681.21,722887607
BIS,Met Office,26/11/2020,06 ACCOMMODATION,CHIEF FINANCIAL OFFICER,SHETLAND GRASSCUTTING,449417,1693.38,978367258
BIS,Met Office,26/11/2020,06 ACCOMMODATION,CHIEF FINANCIAL OFFICER,SHETLAND GRASSCUTTING,449398,2204,978367258
BIS,Met Office,10/11/2020,04 CONTRACTORS,CHIEF FINANCIAL OFFICER,SOLOS CONSULTANTS LTD,448597,6353.6,812035476
BIS,Met Office,10/11/2020,04 CONTRACTORS,CHIEF FINANCIAL OFFICER,SOLOS CONSULTANTS LTD,448635,11278.4,812035476
BIS,Met Office,10/11/2020,04 CONTRACTORS,CHIEF FINANCIAL OFFICER,SOLOS CONSULTANTS LTD,448615,11914.4,812035476
BIS,Met Office,19/11/2020,06 ACCOMMODATION,CHIEF FINANCIAL OFFICER,SOUTH WEST WATER LTD,449022,1230.6,236873674
BIS,Met Office,24/11/2020,06 ACCOMMODATION,CHIEF FINANCIAL OFFICER,SOUTH WEST WATER LTD,449196,4182.43,236873674
BIS,Met Office,10/11/2020,06 ACCOMMODATION,CHIEF FINANCIAL OFFICER,SSE CONTRACTING LTD,448481,-62.34,570118464
BIS,Met Office,19/11/2020,06 ACCOMMODATION,CHIEF FINANCIAL OFFICER,STONE HILL PARK LTD,449003,31.01,196461180
BIS,Met Office,19/11/2020,06 ACCOMMODATION,CHIEF FINANCIAL OFFICER,STONE HILL PARK LTD,449004,42.81,196461180
BIS,Met Office,17/11/2020,11 SERVICES,CHIEF FINANCIAL OFFICER,SURE SOUTH ATLANTIC LTD,448844,591.15,-
BIS,Met Office,17/11/2020,11 SERVICES,CHIEF FINANCIAL OFFICER,SURE SOUTH ATLANTIC LTD,448843,4743,-
BIS,Met Office,24/11/2020,11 SERVICES,CHIEF FINANCIAL OFFICER,SURE SOUTH ATLANTIC LTD (ST HELENA),449154,906.28,30005
BIS,Met Office,12/11/2020,11 SERVICES,CHIEF FINANCIAL OFFICER,TELEFONICA O2 UK LIMITED,448731,50,778603785
BIS,Met Office,17/11/2020,11 SERVICES,CHIEF FINANCIAL OFFICER,TELEFONICA O2 UK LIMITED,448849,8550.06,778603785
BIS,Met Office,25/11/2020,11 SERVICES,CHIEF FINANCIAL OFFICER,TELIA FINLAND OYJ,22059,159.8,FI14756079
BIS,Met Office,05/11/2020,06 ACCOMMODATION,CHIEF FINANCIAL OFFICER,TENNIE FACILITIES PROPERTY MANAGEMENT LTD,448527,186.43,982055803
BIS,Met Office,12/11/2020,06 ACCOMMODATION,CHIEF FINANCIAL OFFICER,THE CLEANING CREW COMPANY,448668,594,343579772
BIS,Met Office,26/11/2020,FIXTURE & FITTINGS,CHIEF FINANCIAL OFFICER,THORLUX LIGHTING,449308,659.12,GB 109 939 440
BIS,Met Office,26/11/2020,FIXTURE & FITTINGS,CHIEF FINANCIAL OFFICER,THORLUX LIGHTING,449303,4583.4,GB 109 939 440
BIS,Met Office,26/11/2020,FIXTURE & FITTINGS,CHIEF FINANCIAL OFFICER,THORLUX LIGHTING,449305,4583.4,GB 109 939 440
BIS,Met Office,26/11/2020,FIXTURE & FITTINGS,CHIEF FINANCIAL OFFICER,THORLUX LIGHTING,449306,4583.4,GB 109 939 440
BIS,Met Office,26/11/2020,FIXTURE & FITTINGS,CHIEF FINANCIAL OFFICER,THORLUX LIGHTING,449307,4693.61,GB 109 939 440
BIS,Met Office,26/11/2020,FIXTURE & FITTINGS,CHIEF FINANCIAL OFFICER,THORLUX LIGHTING,449304,7205.73,GB 109 939 440
BIS,Met Office,26/11/2020,FIXTURE & FITTINGS,CHIEF FINANCIAL OFFICER,THORLUX LIGHTING,449381,8677.17,GB 109 939 440
BIS,Met Office,26/11/2020,FIXTURE & FITTINGS,CHIEF FINANCIAL OFFICER,THORLUX LIGHTING,449302,11116.31,GB 109 939 440
BIS,Met Office,26/11/2020,06 ACCOMMODATION,CHIEF FINANCIAL OFFICER,THORNLEY WILDLIFE SERVICES,449425,160,N/A
BIS,Met Office,03/11/2020,06 ACCOMMODATION,CHIEF FINANCIAL OFFICER,TULLY FARM HOLDINGS T/A CONTRACT SERVICES,448407,1478.75,872632707
BIS,Met Office,17/11/2020,06 ACCOMMODATION,CHIEF FINANCIAL OFFICER,UNDER ONE ROOF (EAST ANGLIA) LIMITED,448981,230,157127804
BIS,Met Office,10/11/2020,11 SERVICES,CHIEF FINANCIAL OFFICER,Vodafone Limited,448581,530.65,569953277
BIS,Met Office,10/11/2020,11 SERVICES,CHIEF FINANCIAL OFFICER,Vodafone Limited,448587,34607.58,569953277
BIS,Met Office,12/11/2020,04 CONTRACTORS,CHIEF FINANCIAL OFFICER,WA CONSULTANTS LTD,448822,-8750,876328977
BIS,Met Office,24/11/2020,04 CONTRACTORS,CHIEF FINANCIAL OFFICER,WA CONSULTANTS LTD,449157,495,876328977
BIS,Met Office,12/11/2020,04 CONTRACTORS,CHIEF FINANCIAL OFFICER,WA CONSULTANTS LTD,448766,3228.75,876328977
BIS,Met Office,12/11/2020,04 CONTRACTORS,CHIEF FINANCIAL OFFICER,WA CONSULTANTS LTD,448823,8702.5,876328977
BIS,Met Office,12/11/2020,04 CONTRACTORS,CHIEF FINANCIAL OFFICER,WA CONSULTANTS LTD,448576,8750,876328977
BIS,Met Office,24/11/2020,04 CONTRACTORS,CHIEF FINANCIAL OFFICER,WA CONSULTANTS LTD,449197,9690.66,876328977
BIS,Met Office,10/11/2020,04 CONTRACTORS,CHIEF FINANCIAL OFFICER,WA CONSULTANTS LTD,448616,10840,876328977
BIS,Met Office,10/11/2020,04 CONTRACTORS,CHIEF FINANCIAL OFFICER,WA CONSULTANTS LTD,448629,13150,876328977
BIS,Met Office,12/11/2020,04 CONTRACTORS,CHIEF FINANCIAL OFFICER,WA CONSULTANTS LTD,448773,17250,876328977
BIS,Met Office,03/11/2020,11 SERVICES,CHIEF FINANCIAL OFFICER,WEBEX COMMUNICATIONS UK LTD,448423,520.42,815974302
BIS,Met Office,26/11/2020,06 ACCOMMODATION,CHIEF FINANCIAL OFFICER,WIRELESS NETWORK DEVELOPMENTS (UK) LTD,449435,149.94,GB277474559
BIS,Met Office,12/11/2020,11 SERVICES,CHIEF FINANCIAL OFFICER,XPEDITE SYSTEMS (UK) LTD,448567,100,599016994
BIS,Met Office,17/11/2020,11 SERVICES,CORPORATE,BW TRAINING LTD,448820,395,-
BIS,Met Office,19/11/2020,11 SERVICES,CORPORATE,BW TRAINING LTD,449010,395,-
BIS,Met Office,24/11/2020,11 SERVICES,CORPORATE,BW TRAINING LTD,449188,395,-
BIS,Met Office,24/11/2020,11 SERVICES,CORPORATE,ELASTICSEARCH LTD,449114,8783.56,155790484
BIS,Met Office,05/11/2020,11 SERVICES,CORPORATE,EQUINITI ICS LTD,448514,316.66,915967778
BIS,Met Office,05/11/2020,11 SERVICES,CORPORATE,EQUINITI ICS LTD,448513,6846,915967778
BIS,Met Office,17/11/2020,11 SERVICES,CORPORATE,HAWK INCENTIVES LTD,448829,125,238839422
BIS,Met Office,26/11/2020,11 SERVICES,CORPORATE,HAWK INCENTIVES LTD,449337,183.5,238839422
BIS,Met Office,17/11/2020,11 SERVICES,CORPORATE,HAWK INCENTIVES LTD,448863,216.75,238839422
BIS,Met Office,26/11/2020,11 SERVICES,CORPORATE,HAWK INCENTIVES LTD,449336,383.25,238839422
BIS,Met Office,03/11/2020,11 SERVICES,CORPORATE,HAWK INCENTIVES LTD,448427,408,238839422
BIS,Met Office,17/11/2020,11 SERVICES,CORPORATE,HAWK INCENTIVES LTD,448829,2500,238839422
BIS,Met Office,26/11/2020,11 SERVICES,CORPORATE,HAWK INCENTIVES LTD,449337,3670,238839422
BIS,Met Office,17/11/2020,11 SERVICES,CORPORATE,HAWK INCENTIVES LTD,448863,4335,238839422
BIS,Met Office,26/11/2020,11 SERVICES,CORPORATE,HAWK INCENTIVES LTD,449336,7665,238839422
BIS,Met Office,03/11/2020,11 SERVICES,CORPORATE,HAWK INCENTIVES LTD,448427,8160,238839422
BIS,Met Office,24/11/2020,04 CONTRACTORS,CORPORATE,HAYS SPECIALIST RECRUITMENT LTD,449124,366.16,773695871
BIS,Met Office,12/11/2020,04 CONTRACTORS,CORPORATE,HAYS SPECIALIST RECRUITMENT LTD,448747,427.18,773695871
BIS,Met Office,12/11/2020,04 CONTRACTORS,CORPORATE,HAYS SPECIALIST RECRUITMENT LTD,448833,488.2,773695871
BIS,Met Office,24/11/2020,04 CONTRACTORS,CORPORATE,HAYS SPECIALIST RECRUITMENT LTD,449148,488.2,773695871
BIS,Met Office,26/11/2020,04 CONTRACTORS,CORPORATE,HAYS SPECIALIST RECRUITMENT LTD,449405,488.2,773695871
BIS,Met Office,24/11/2020,04 CONTRACTORS,CORPORATE,HAYS SPECIALIST RECRUITMENT LTD,449122,634.67,773695871
BIS,Met Office,24/11/2020,04 CONTRACTORS,CORPORATE,HAYS SPECIALIST RECRUITMENT LTD,449143,634.67,773695871
BIS,Met Office,26/11/2020,04 CONTRACTORS,CORPORATE,HAYS SPECIALIST RECRUITMENT LTD,449426,634.67,773695871
BIS,Met Office,12/11/2020,04 CONTRACTORS,CORPORATE,HAYS SPECIALIST RECRUITMENT LTD,448742,658.25,773695871
BIS,Met Office,24/11/2020,04 CONTRACTORS,CORPORATE,HAYS SPECIALIST RECRUITMENT LTD,449120,658.25,773695871
BIS,Met Office,24/11/2020,04 CONTRACTORS,CORPORATE,HAYS SPECIALIST RECRUITMENT LTD,449136,658.25,773695871
BIS,Met Office,26/11/2020,04 CONTRACTORS,CORPORATE,HAYS SPECIALIST RECRUITMENT LTD,449428,658.25,773695871
BIS,Met Office,24/11/2020,04 CONTRACTORS,CORPORATE,HAYS SPECIALIST RECRUITMENT LTD,449149,732.32,773695871
BIS,Met Office,03/11/2020,04 CONTRACTORS,CORPORATE,HAYS SPECIALIST RECRUITMENT LTD,448415,915.4,773695871
BIS,Met Office,12/11/2020,04 CONTRACTORS,CORPORATE,HAYS SPECIALIST RECRUITMENT LTD,448743,915.4,773695871
BIS,Met Office,05/11/2020,04 CONTRACTORS,CORPORATE,JOBSEEKERS RECRUITMENT SERVICES LTD,448465,663.78,130 1297 14
BIS,Met Office,12/11/2020,04 CONTRACTORS,CORPORATE,JOBSEEKERS RECRUITMENT SERVICES LTD,448810,663.78,130 1297 14
BIS,Met Office,12/11/2020,04 CONTRACTORS,CORPORATE,JOBSEEKERS RECRUITMENT SERVICES LTD,448877,663.78,130 1297 14
BIS,Met Office,26/11/2020,04 CONTRACTORS,CORPORATE,JOBSEEKERS RECRUITMENT SERVICES LTD,449355,663.78,130 1297 14
BIS,Met Office,24/11/2020,11 SERVICES,CORPORATE,Landmark Information Group Ltd,449186,24570.71,634509735
BIS,Met Office,24/11/2020,11 SERVICES,CORPORATE,Landmark Information Group Ltd,449187,27960,634509735
BIS,Met Office,24/11/2020,11 SERVICES,CORPORATE,Landmark Information Group Ltd,449184,50215,634509735
BIS,Met Office,24/11/2020,11 SERVICES,CORPORATE,Landmark Information Group Ltd,449185,61658.57,634509735
BIS,Met Office,26/11/2020,04 CONTRACTORS,CORPORATE,OUTSOURCE UK LIMITED,449313,1048.38,576118722
BIS,Met Office,05/11/2020,04 CONTRACTORS,CORPORATE,OUTSOURCE UK LIMITED,448455,5935.56,576118722
BIS,Met Office,26/11/2020,04 CONTRACTORS,CORPORATE,OUTSOURCE UK LIMITED,449312,5940.82,576118722
BIS,Met Office,05/11/2020,04 CONTRACTORS,CORPORATE,OUTSOURCE UK LIMITED,448458,17000,576118722
BIS,Met Office,10/11/2020,11 SERVICES,CORPORATE,PICKLE ILLUSTRATION,448586,500,-
BIS,Met Office,03/11/2020,04 CONTRACTORS,CORPORATE,QUALSERV CONSULTING LTD,448412,8292.07,719067718
BIS,Met Office,19/11/2020,11 SERVICES,CORPORATE,REDACTED � PERSONAL DATA,449207,90,143043312
BIS,Met Office,03/11/2020,11 SERVICES,CORPORATE,REDACTED � PERSONAL DATA,448397,406,143043312
BIS,Met Office,10/11/2020,11 SERVICES,CORPORATE,REDACTED � PERSONAL DATA,448574,1493,143043312
BIS,Met Office,19/11/2020,11 SERVICES,CORPORATE,SODEXO MOT SOL UK  LTD (CHILDCARE RECEIPTS),449009,438.11,733644335
BIS,Met Office,26/11/2020,11 SERVICES,CORPORATE,SODEXO MOT SOL UK  LTD (CHILDCARE RECEIPTS),449260,442.32,733644335
BIS,Met Office,10/11/2020,04 CONTRACTORS,CORPORATE,SOLOS CONSULTANTS LTD,448603,2884.3,812035476
BIS,Met Office,10/11/2020,04 CONTRACTORS,CORPORATE,SOLOS CONSULTANTS LTD,448595,6661.96,812035476
BIS,Met Office,10/11/2020,04 CONTRACTORS,CORPORATE,SOLOS CONSULTANTS LTD,448640,8763.69,812035476
BIS,Met Office,10/11/2020,04 CONTRACTORS,CORPORATE,SOLOS CONSULTANTS LTD,448612,9939.6,812035476
BIS,Met Office,10/11/2020,11 SERVICES,CORPORATE,SOURCE COACHING CONSULTANCY,448684,3180,170422048
BIS,Met Office,26/11/2020,11 SERVICES,CORPORATE,UNIVERSITY OF EXETER,449369,4774.05,142047795
BIS,Met Office,24/11/2020,04 CONTRACTORS,CORPORATE,WA CONSULTANTS LTD,449203,5587.2,876328977
BIS,Met Office,26/11/2020,04 CONTRACTORS,CORPORATE,WA CONSULTANTS LTD,449351,5959.68,876328977
BIS,Met Office,10/11/2020,04 CONTRACTORS,CORPORATE,WA CONSULTANTS LTD,448676,6326.46,876328977
BIS,Met Office,17/11/2020,11 SERVICES,GOVERNMENT SERVICES,ACCELERATION EMARKETING,448816,3876.71,848940776
BIS,Met Office,17/11/2020,11 SERVICES,GOVERNMENT SERVICES,ADOPSTAR,448808,1250,115036848
BIS,Met Office,17/11/2020,11 SERVICES,GOVERNMENT SERVICES,AECOM INFRASTRUCTURE & ENVIRONMENT UK LTD,449017,847.5,611853162
BIS,Met Office,17/11/2020,11 SERVICES,GOVERNMENT SERVICES,AECOM INFRASTRUCTURE & ENVIRONMENT UK LTD,449018,5718.75,611853162
BIS,Met Office,12/11/2020,11 SERVICES,GOVERNMENT SERVICES,ALTO AEROSPACE LIMITED,448690,2475,275002528
BIS,Met Office,10/11/2020,11 SERVICES,GOVERNMENT SERVICES,Arup,448627,50990,524461265
BIS,Met Office,26/11/2020,11 SERVICES,GOVERNMENT SERVICES,B2B INTERNATIONAL LTD,449434,17337.5,685937275
BIS,Met Office,11/11/2020,11 SERVICES,GOVERNMENT SERVICES,"BASILIO SOZINHO CUBULA SERVI�OS, E.I.",9981,4055.31,N/A
BIS,Met Office,10/11/2020,11 SERVICES,GOVERNMENT SERVICES,BBC MEDIA ACTION,448593,17064.84,GB333289454
BIS,Met Office,10/11/2020,11 SERVICES,GOVERNMENT SERVICES,BBC MEDIA ACTION,448593,22205.16,GB333289454
BIS,Met Office,10/11/2020,11 SERVICES,GOVERNMENT SERVICES,BBC MEDIA ACTION,448593,44565,GB333289454
BIS,Met Office,26/11/2020,11 SERVICES,GOVERNMENT SERVICES,BEIS,449134,502860,888825550
BIS,Met Office,10/11/2020,11 SERVICES,GOVERNMENT SERVICES,CACI LTD,448571,424,380609841
BIS,Met Office,10/11/2020,11 SERVICES,GOVERNMENT SERVICES,CACI LTD,448571,749,380609841
BIS,Met Office,03/11/2020,11 SERVICES,GOVERNMENT SERVICES,CACI LTD,448387,2348.5,380609841
BIS,Met Office,10/11/2020,11 SERVICES,GOVERNMENT SERVICES,CACI LTD,448571,5580,380609841
BIS,Met Office,03/11/2020,11 SERVICES,GOVERNMENT SERVICES,CACI LTD,448387,6136,380609841
BIS,Met Office,03/11/2020,11 SERVICES,GOVERNMENT SERVICES,CACI LTD,448387,7855.5,380609841
BIS,Met Office,03/11/2020,11 SERVICES,GOVERNMENT SERVICES,CACI LTD,448387,9018,380609841
BIS,Met Office,10/11/2020,11 SERVICES,GOVERNMENT SERVICES,CACI LTD,448571,14774.5,380609841
BIS,Met Office,10/11/2020,11 SERVICES,GOVERNMENT SERVICES,CACI LTD,448571,19352,380609841
BIS,Met Office,10/11/2020,11 SERVICES,GOVERNMENT SERVICES,CACI LTD,448571,24231,380609841
BIS,Met Office,19/11/2020,11 SERVICES,GOVERNMENT SERVICES,CENTRE FOR FACILITATION,448860,3150,124183047
BIS,Met Office,25/11/2020,11 SERVICES,GOVERNMENT SERVICES,CENTRO INTERNACIONAL DE AGRICULTURA TROPICAL,449130,51031.81,na
BIS,Met Office,04/11/2020,11 SERVICES,GOVERNMENT SERVICES,ECMWF,21838,-1511.28,NOTVATREG
BIS,Met Office,04/11/2020,11 SERVICES,GOVERNMENT SERVICES,ECMWF,21889,673.54,NOTVATREG
BIS,Met Office,04/11/2020,11 SERVICES,GOVERNMENT SERVICES,ECMWF,21855,910.81,NOTVATREG
BIS,Met Office,04/11/2020,11 SERVICES,GOVERNMENT SERVICES,ECMWF,21902,910.81,NOTVATREG
BIS,Met Office,04/11/2020,11 SERVICES,GOVERNMENT SERVICES,ECMWF,21859,1593.92,NOTVATREG
BIS,Met Office,04/11/2020,11 SERVICES,GOVERNMENT SERVICES,ECMWF,21839,1821.61,NOTVATREG
BIS,Met Office,04/11/2020,11 SERVICES,GOVERNMENT SERVICES,ECMWF,21885,1821.61,NOTVATREG
BIS,Met Office,04/11/2020,11 SERVICES,GOVERNMENT SERVICES,ECMWF,21882,2282.85,NOTVATREG
BIS,Met Office,04/11/2020,11 SERVICES,GOVERNMENT SERVICES,ECMWF,21906,3187.82,NOTVATREG
BIS,Met Office,04/11/2020,11 SERVICES,GOVERNMENT SERVICES,ECMWF,21887,3294.19,NOTVATREG
BIS,Met Office,04/11/2020,11 SERVICES,GOVERNMENT SERVICES,ECMWF,21883,3940.45,NOTVATREG
BIS,Met Office,04/11/2020,11 SERVICES,GOVERNMENT SERVICES,ECMWF,21852,4098.62,NOTVATREG
BIS,Met Office,04/11/2020,11 SERVICES,GOVERNMENT SERVICES,ECMWF,21854,4098.62,NOTVATREG
BIS,Met Office,04/11/2020,11 SERVICES,GOVERNMENT SERVICES,ECMWF,21858,5131.2,NOTVATREG
BIS,Met Office,04/11/2020,11 SERVICES,GOVERNMENT SERVICES,ECMWF,21861,5424.85,NOTVATREG
BIS,Met Office,04/11/2020,11 SERVICES,GOVERNMENT SERVICES,ECMWF,21891,6142.02,NOTVATREG
BIS,Met Office,04/11/2020,11 SERVICES,GOVERNMENT SERVICES,ECMWF,21881,6291.21,NOTVATREG
BIS,Met Office,04/11/2020,11 SERVICES,GOVERNMENT SERVICES,ECMWF,21840,7289.04,NOTVATREG
BIS,Met Office,04/11/2020,11 SERVICES,GOVERNMENT SERVICES,ECMWF,21877,10439.6,NOTVATREG
BIS,Met Office,04/11/2020,11 SERVICES,GOVERNMENT SERVICES,ECMWF,21853,10787.59,NOTVATREG
BIS,Met Office,04/11/2020,11 SERVICES,GOVERNMENT SERVICES,ECMWF,21880,12177.52,NOTVATREG
BIS,Met Office,04/11/2020,11 SERVICES,GOVERNMENT SERVICES,ECMWF,21863,13206.67,NOTVATREG
BIS,Met Office,04/11/2020,11 SERVICES,GOVERNMENT SERVICES,ECMWF,20826,14789.04,NOTVATREG
BIS,Met Office,04/11/2020,11 SERVICES,GOVERNMENT SERVICES,ECMWF,21866,30284.26,NOTVATREG
BIS,Met Office,04/11/2020,11 SERVICES,GOVERNMENT SERVICES,ECMWF,21909,30284.26,NOTVATREG
BIS,Met Office,04/11/2020,11 SERVICES,GOVERNMENT SERVICES,ECMWF,21901,32014.79,NOTVATREG
BIS,Met Office,04/11/2020,11 SERVICES,GOVERNMENT SERVICES,ECMWF,21903,32014.79,NOTVATREG
BIS,Met Office,25/11/2020,11 SERVICES,GOVERNMENT SERVICES,ECOMET,22027,226662.05,EXEMPT
BIS,Met Office,10/11/2020,06 ACCOMMODATION,GOVERNMENT SERVICES,FORSS MANAGEMENT LIMITED,448633,35,-
BIS,Met Office,10/11/2020,06 ACCOMMODATION,GOVERNMENT SERVICES,FORSS MANAGEMENT LIMITED,448643,260.3,-
BIS,Met Office,12/11/2020,11 SERVICES,GOVERNMENT SERVICES,GEOSMART INFORMATION LTD,448839,5833,172271519
BIS,Met Office,12/11/2020,04 CONTRACTORS,GOVERNMENT SERVICES,HAYS SPECIALIST RECRUITMENT LTD,448745,183.08,773695871
BIS,Met Office,24/11/2020,04 CONTRACTORS,GOVERNMENT SERVICES,HAYS SPECIALIST RECRUITMENT LTD,449123,183.08,773695871
BIS,Met Office,24/11/2020,04 CONTRACTORS,GOVERNMENT SERVICES,HAYS SPECIALIST RECRUITMENT LTD,449140,183.08,773695871
BIS,Met Office,26/11/2020,04 CONTRACTORS,GOVERNMENT SERVICES,HAYS SPECIALIST RECRUITMENT LTD,449406,183.08,773695871
BIS,Met Office,12/11/2020,04 CONTRACTORS,GOVERNMENT SERVICES,HAYS SPECIALIST RECRUITMENT LTD,448741,366.16,773695871
BIS,Met Office,24/11/2020,04 CONTRACTORS,GOVERNMENT SERVICES,HAYS SPECIALIST RECRUITMENT LTD,449126,366.16,773695871
BIS,Met Office,24/11/2020,04 CONTRACTORS,GOVERNMENT SERVICES,HAYS SPECIALIST RECRUITMENT LTD,449234,366.16,773695871
BIS,Met Office,26/11/2020,04 CONTRACTORS,GOVERNMENT SERVICES,HAYS SPECIALIST RECRUITMENT LTD,449407,366.16,773695871
BIS,Met Office,11/11/2020,08 SOFTWARE LICENCES,GOVERNMENT SERVICES,"IBL SOFTWARE ENGINEERING, SPOL S.R.O.",21936,2486.47,SK2020241883
BIS,Met Office,11/11/2020,11 SERVICES,GOVERNMENT SERVICES,ICIMOD,9983,39253.27,-
BIS,Met Office,04/11/2020,11 SERVICES,GOVERNMENT SERVICES,IGAD CLIMATE PREDICTION & APPLICATIONS CNTR,448327,66477.59,-
BIS,Met Office,04/11/2020,11 SERVICES,GOVERNMENT SERVICES,IGAD CLIMATE PREDICTION & APPLICATIONS CNTR,448298,117480.61,-
BIS,Met Office,25/11/2020,11 SERVICES,GOVERNMENT SERVICES,"INTELLOVATIONS, LLC",9986,2162.94,-
BIS,Met Office,12/11/2020,11 SERVICES,GOVERNMENT SERVICES,JEREMY BENN ASSOCIATES LIMITED,448867,24700,GB 665300941
BIS,Met Office,05/11/2020,04 CONTRACTORS,GOVERNMENT SERVICES,JOBSEEKERS RECRUITMENT SERVICES LTD,448472,268.5,130 1297 14
BIS,Met Office,05/11/2020,04 CONTRACTORS,GOVERNMENT SERVICES,JOBSEEKERS RECRUITMENT SERVICES LTD,448466,474.35,130 1297 14
BIS,Met Office,12/11/2020,04 CONTRACTORS,GOVERNMENT SERVICES,JOBSEEKERS RECRUITMENT SERVICES LTD,448873,528.05,130 1297 14
BIS,Met Office,05/11/2020,04 CONTRACTORS,GOVERNMENT SERVICES,JOBSEEKERS RECRUITMENT SERVICES LTD,448467,537,130 1297 14
BIS,Met Office,12/11/2020,04 CONTRACTORS,GOVERNMENT SERVICES,JOBSEEKERS RECRUITMENT SERVICES LTD,448817,537,130 1297 14
BIS,Met Office,12/11/2020,04 CONTRACTORS,GOVERNMENT SERVICES,JOBSEEKERS RECRUITMENT SERVICES LTD,448874,537,130 1297 14
BIS,Met Office,26/11/2020,04 CONTRACTORS,GOVERNMENT SERVICES,JOBSEEKERS RECRUITMENT SERVICES LTD,449360,537,130 1297 14
BIS,Met Office,12/11/2020,04 CONTRACTORS,GOVERNMENT SERVICES,JOBSEEKERS RECRUITMENT SERVICES LTD,448811,662.3,130 1297 14
BIS,Met Office,12/11/2020,04 CONTRACTORS,GOVERNMENT SERVICES,JOBSEEKERS RECRUITMENT SERVICES LTD,448818,662.3,130 1297 14
BIS,Met Office,12/11/2020,04 CONTRACTORS,GOVERNMENT SERVICES,JOBSEEKERS RECRUITMENT SERVICES LTD,448876,662.3,130 1297 14
BIS,Met Office,26/11/2020,04 CONTRACTORS,GOVERNMENT SERVICES,JOBSEEKERS RECRUITMENT SERVICES LTD,449357,662.3,130 1297 14
BIS,Met Office,26/11/2020,04 CONTRACTORS,GOVERNMENT SERVICES,JOBSEEKERS RECRUITMENT SERVICES LTD,449361,662.3,130 1297 14
BIS,Met Office,26/11/2020,04 CONTRACTORS,GOVERNMENT SERVICES,JOBSEEKERS RECRUITMENT SERVICES LTD,449359,813.66,130 1297 14
BIS,Met Office,05/11/2020,04 CONTRACTORS,GOVERNMENT SERVICES,JOBSEEKERS RECRUITMENT SERVICES LTD,448468,848.04,130 1297 14
BIS,Met Office,12/11/2020,04 CONTRACTORS,GOVERNMENT SERVICES,JOBSEEKERS RECRUITMENT SERVICES LTD,448812,848.04,130 1297 14
BIS,Met Office,12/11/2020,04 CONTRACTORS,GOVERNMENT SERVICES,JOBSEEKERS RECRUITMENT SERVICES LTD,448875,848.04,130 1297 14
BIS,Met Office,12/11/2020,11 SERVICES,GOVERNMENT SERVICES,LTS INTERNATIONAL,448737,5071.02,267763712
BIS,Met Office,12/11/2020,11 SERVICES,GOVERNMENT SERVICES,LTS INTERNATIONAL,448737,6734.85,267763712
BIS,Met Office,05/11/2020,11 SERVICES,GOVERNMENT SERVICES,LTS INTERNATIONAL,448525,27835.47,267763712
BIS,Met Office,11/11/2020,11 SERVICES,GOVERNMENT SERVICES,NORWEGIAN METEOROLOGICAL INST,22020,49885.08,NO971274042MVA
BIS,Met Office,03/11/2020,04 CONTRACTORS,GOVERNMENT SERVICES,QUALSERV CONSULTING LTD,448409,4950,719067718
BIS,Met Office,26/11/2020,06 ACCOMMODATION,GOVERNMENT SERVICES,REDACTED � PERSONAL DATA,449459,36,GB 268954011
BIS,Met Office,26/11/2020,06 ACCOMMODATION,GOVERNMENT SERVICES,REDACTED � PERSONAL DATA,449459,500,GB 268954011
BIS,Met Office,12/11/2020,11 SERVICES,GOVERNMENT SERVICES,REDACTED � PERSONAL DATA,448683,20000,N/A
BIS,Met Office,26/11/2020,11 SERVICES,GOVERNMENT SERVICES,RESURGENCE URBAN RESILIENCE TRUST,449340,21872.65,259524184
BIS,Met Office,25/11/2020,11 SERVICES,GOVERNMENT SERVICES,RIMES,9958,35201.89,-
BIS,Met Office,17/11/2020,11 SERVICES,GOVERNMENT SERVICES,ROWE IT LTD,448670,2850,924964394
BIS,Met Office,10/11/2020,11 SERVICES,GOVERNMENT SERVICES,ROWE IT LTD,448666,3307.5,924964394
BIS,Met Office,17/11/2020,11 SERVICES,GOVERNMENT SERVICES,ROWE IT LTD,448671,9902.5,924964394
BIS,Met Office,25/11/2020,11 SERVICES,GOVERNMENT SERVICES,SKIRESORT SERVICE INTERNATIONAL,21994,1804.89,DE267023708
BIS,Met Office,19/11/2020,11 SERVICES,GOVERNMENT SERVICES,SOCIAL SENSING LTD,449013,2758,-
BIS,Met Office,10/11/2020,04 CONTRACTORS,GOVERNMENT SERVICES,SOLOS CONSULTANTS LTD,448605,3943.4,812035476
BIS,Met Office,10/11/2020,04 CONTRACTORS,GOVERNMENT SERVICES,SOLOS CONSULTANTS LTD,448605,3943.4,812035476
BIS,Met Office,10/11/2020,04 CONTRACTORS,GOVERNMENT SERVICES,SOLOS CONSULTANTS LTD,448603,5768.3,812035476
BIS,Met Office,18/11/2020,11 SERVICES,GOVERNMENT SERVICES,SOUTHSOUTHNORTH,448784,51139.58,4790219721
BIS,Met Office,26/11/2020,11 SERVICES,GOVERNMENT SERVICES,STAGE ENGAGE LTD,449433,2885,GB120210593
BIS,Met Office,01/11/2020,11 SERVICES,GOVERNMENT SERVICES,TANZANIA METEOROLOGICAL AGENCY,445336,26000,-
BIS,Met Office,25/11/2020,11 SERVICES,GOVERNMENT SERVICES,TRUSTEES OF COLUMBIA UNIVERSITY,9978,22041.07,-
BIS,Met Office,26/11/2020,11 SERVICES,GOVERNMENT SERVICES,UK ATOMIC ENERGY AUTHORITY,449333,12720.71,GB570101391
BIS,Met Office,24/11/2020,11 SERVICES,GOVERNMENT SERVICES,UNIVERSITY OF EXETER,449141,37994.3,142047795
BIS,Met Office,26/11/2020,04 CONTRACTORS,GOVERNMENT SERVICES,WA CONSULTANTS LTD,449377,906,876328977
BIS,Met Office,12/11/2020,04 CONTRACTORS,GOVERNMENT SERVICES,WA CONSULTANTS LTD,448902,2662,876328977
BIS,Met Office,12/11/2020,04 CONTRACTORS,GOVERNMENT SERVICES,WA CONSULTANTS LTD,448771,3240,876328977
BIS,Met Office,03/11/2020,11 SERVICES,GOVERNMENT SERVICES,WALNUT UNLIMITED LIMITED,448414,5900,648857968
BIS,Met Office,19/11/2020,11 SERVICES,OPERATIONS,A Cloud Guru Ltd,445535,747.99,GB230465925
BIS,Met Office,19/11/2020,11 SERVICES,OPERATIONS,A Cloud Guru Ltd,447150,1309,GB230465925
BIS,Met Office,24/11/2020,03 STAFF COSTS T&S,OPERATIONS,AIRPORT CAR RENTALS LTD,449113,320,-
BIS,Met Office,26/11/2020,11 SERVICES,OPERATIONS,APPLIED SATELLITE TECHNOLOGY SYSTEMS LTD,449416,11232.48,720108683
BIS,Met Office,12/11/2020,11 SERVICES,OPERATIONS,ASPIRE EUROPE LTD,448815,2500,841124953
BIS,Met Office,03/11/2020,10 EQUIPMENT MAINTENANCE,OPERATIONS,BFBS MEDIA LTD,448421,13958.49,GB 118 496 687
BIS,Met Office,17/11/2020,STOCK,OPERATIONS,Biffa Waste Services Ltd,448856,300.9,537911627
BIS,Met Office,26/11/2020,STOCK,OPERATIONS,Campbell Scientific Ltd,448119,0,428453933
BIS,Met Office,26/11/2020,STOCK,OPERATIONS,Campbell Scientific Ltd,448119,0,428453933
BIS,Met Office,26/11/2020,11 SERVICES,OPERATIONS,Campbell Scientific Ltd,448119,20,428453933
BIS,Met Office,26/11/2020,STOCK,OPERATIONS,Campbell Scientific Ltd,448119,1152,428453933
BIS,Met Office,26/11/2020,STOCK,OPERATIONS,Campbell Scientific Ltd,448119,2454.3,428453933
BIS,Met Office,12/11/2020,03 STAFF COSTS T&S,OPERATIONS,CARTUS FINANCING LTD,448687,58.71,768489458
BIS,Met Office,12/11/2020,03 STAFF COSTS T&S,OPERATIONS,CARTUS LTD,448830,92.4,768489458
BIS,Met Office,12/11/2020,03 STAFF COSTS T&S,OPERATIONS,CARTUS LTD,448901,98.66,768489458
BIS,Met Office,12/11/2020,11 SERVICES,OPERATIONS,CARTUS LTD,448834,125,768489458
BIS,Met Office,12/11/2020,03 STAFF COSTS T&S,OPERATIONS,CARTUS LTD,448842,137,768489458
BIS,Met Office,12/11/2020,03 STAFF COSTS T&S,OPERATIONS,CARTUS LTD,448840,200,768489458
BIS,Met Office,12/11/2020,03 STAFF COSTS T&S,OPERATIONS,CARTUS LTD,448841,200,768489458
BIS,Met Office,12/11/2020,03 STAFF COSTS T&S,OPERATIONS,CARTUS LTD,448836,330.24,768489458
BIS,Met Office,17/11/2020,03 STAFF COSTS T&S,OPERATIONS,CARTUS LTD,448838,660.48,768489458
BIS,Met Office,17/11/2020,03 STAFF COSTS T&S,OPERATIONS,CARTUS LTD,448832,663,768489458
BIS,Met Office,10/11/2020,03 STAFF COSTS T&S,OPERATIONS,CARTUS LTD,447797,3451.82,768489458
BIS,Met Office,05/11/2020,11 SERVICES,OPERATIONS,CATALYST IT,448506,1301.87,978169262
BIS,Met Office,19/11/2020,07 EQUIPMENT,OPERATIONS,CATALYST IT,448868,8500,978169262
BIS,Met Office,05/11/2020,03 STAFF COSTS T&S,OPERATIONS,CHARLIE'S TRAVEL LTD,448524,60,783848277
BIS,Met Office,05/11/2020,03 STAFF COSTS T&S,OPERATIONS,CHARLIE'S TRAVEL LTD,448524,486,783848277
BIS,Met Office,25/11/2020,07 EQUIPMENT,OPERATIONS,DATA BUOY INSTRUMENTATION LLC,10005,17758.89,-
BIS,Met Office,26/11/2020,03 STAFF COSTS T&S,OPERATIONS,DBS FINANCE RECEIPTS CTS,449189,2439,888805068
BIS,Met Office,26/11/2020,13 MISCELLANEOUS,OPERATIONS,DHL GLOBAL FORWARDING (UK) LTD,449338,12487.46,745260438
BIS,Met Office,11/11/2020,STOCK,OPERATIONS,ELAR MARITIME,22032,1560.19,330 219 88 83
BIS,Met Office,11/11/2020,11 SERVICES,OPERATIONS,ELEKTROINSTITUT MILAN VIDMAR,21929,7461.68,SI11781939
BIS,Met Office,04/11/2020,11 SERVICES,OPERATIONS,"EUTELSAT MADERIA, UNIPESSOAL LDA",21928,2352.99,PT511283733
BIS,Met Office,04/11/2020,11 SERVICES,OPERATIONS,"EUTELSAT, S.A.",21917,3107.51,-
BIS,Met Office,04/11/2020,11 SERVICES,OPERATIONS,"EUTELSAT, S.A.",21916,4003.53,-
BIS,Met Office,12/11/2020,03 STAFF COSTS T&S,OPERATIONS,FALKLAND ISLAND COMPANY LTD,445901,700,N/A
BIS,Met Office,17/11/2020,03 STAFF COSTS T&S,OPERATIONS,FALKLAND ISLAND COMPANY LTD,448025,700,N/A
BIS,Met Office,19/11/2020,11 SERVICES,OPERATIONS,GAMMA TELECOM LTD,449092,3246.76,823820344
BIS,Met Office,10/11/2020,11 SERVICES,OPERATIONS,HOPSCOTCH CONSULTING,448573,17763,102099056
BIS,Met Office,12/11/2020,06 ACCOMMODATION,OPERATIONS,INMARSAT SOLUTIONS (CANADA) INC,448679,46.05,766144223
BIS,Met Office,12/11/2020,06 ACCOMMODATION,OPERATIONS,INMARSAT SOLUTIONS (CANADA) INC,448678,61.4,766144223
BIS,Met Office,12/11/2020,06 ACCOMMODATION,OPERATIONS,INMARSAT SOLUTIONS (CANADA) INC,448677,1665.05,766144223
BIS,Met Office,05/11/2020,04 CONTRACTORS,OPERATIONS,JOBSEEKERS RECRUITMENT SERVICES LTD,448474,328.74,130 1297 14
BIS,Met Office,12/11/2020,04 CONTRACTORS,OPERATIONS,JOBSEEKERS RECRUITMENT SERVICES LTD,448872,615.42,130 1297 14
BIS,Met Office,26/11/2020,04 CONTRACTORS,OPERATIONS,JOBSEEKERS RECRUITMENT SERVICES LTD,449362,634.54,130 1297 14
BIS,Met Office,12/11/2020,04 CONTRACTORS,OPERATIONS,JOBSEEKERS RECRUITMENT SERVICES LTD,448819,764.5,130 1297 14
BIS,Met Office,19/11/2020,11 SERVICES,OPERATIONS,LEARNING TREE INTERNATIONAL LTD,448864,4885,245335568
BIS,Met Office,17/11/2020,07 EQUIPMENT,OPERATIONS,M C ENGINEERING SERVICES,448779,135.2,813172066
BIS,Met Office,11/11/2020,12 INTERNATIONAL,OPERATIONS,MACITECHSY SOLUTIONS,448674,2093.04,-
BIS,Met Office,24/11/2020,11 SERVICES,OPERATIONS,MOMENTUM INCORPORATED,449183,1600,598958541
BIS,Met Office,12/11/2020,12 INTERNATIONAL,OPERATIONS,MYACORN LTD,448852,8850,-
BIS,Met Office,25/11/2020,11 SERVICES,OPERATIONS,NSSL GLOBAL LTD,9972,54.12,725151948
BIS,Met Office,25/11/2020,11 SERVICES,OPERATIONS,NSSL GLOBAL LTD,9973,54.12,725151948
BIS,Met Office,10/11/2020,06 ACCOMMODATION,OPERATIONS,Osprey Consulting Services Ltd,448424,2589,GB898003206
BIS,Met Office,05/11/2020,04 CONTRACTORS,OPERATIONS,OUTSOURCE UK LIMITED,448450,2365.6,576118722
BIS,Met Office,05/11/2020,04 CONTRACTORS,OPERATIONS,OUTSOURCE UK LIMITED,448451,6769.2,576118722
BIS,Met Office,25/11/2020,11 SERVICES,OPERATIONS,PLURALSIGHT,448005,6664.56,EU826020045
BIS,Met Office,04/11/2020,11 SERVICES,OPERATIONS,Public Health England,448406,2109,155579377
BIS,Met Office,03/11/2020,04 CONTRACTORS,OPERATIONS,QUALSERV CONSULTING LTD,448413,6288,719067718
BIS,Met Office,19/11/2020,10 EQUIPMENT MAINTENANCE,OPERATIONS,RAISE TELECOMS LTD,449110,6510,166016521
BIS,Met Office,12/11/2020,10 EQUIPMENT MAINTENANCE,OPERATIONS,RAISE TELECOMS LTD,448871,17475,166016521
BIS,Met Office,11/11/2020,12 INTERNATIONAL,OPERATIONS,REDACTED � PERSONAL DATA,9987,2656.24,-
BIS,Met Office,19/11/2020,11 SERVICES,OPERATIONS,ROWE IT LTD,448665,29970,924964394
BIS,Met Office,19/11/2020,11 SERVICES,OPERATIONS,ROWE IT LTD,448665,29970,924964394
BIS,Met Office,10/11/2020,11 SERVICES,OPERATIONS,ROWE IT LTD,448667,32681.25,924964394
BIS,Met Office,12/11/2020,11 SERVICES,OPERATIONS,SOFTWIRE TECHNOLOGY LIMITED,448751,2520,752 1253 57
BIS,Met Office,10/11/2020,04 CONTRACTORS,OPERATIONS,SOLOS CONSULTANTS LTD,448401,-1415.01,812035476
BIS,Met Office,10/11/2020,04 CONTRACTORS,OPERATIONS,SOLOS CONSULTANTS LTD,448607,9299.8,812035476
BIS,Met Office,10/11/2020,04 CONTRACTORS,OPERATIONS,SOLOS CONSULTANTS LTD,448637,13634.6,812035476
BIS,Met Office,19/11/2020,11 SERVICES,OPERATIONS,SOUTHERN ROPES,449111,200,GB 891 9765 57
BIS,Met Office,11/11/2020,12 INTERNATIONAL,OPERATIONS,SPREP,9982,38396.26,-
BIS,Met Office,24/11/2020,07 EQUIPMENT,OPERATIONS,SWALE TECHNOLOGIES LTD,449091,3982.21,530846451
BIS,Met Office,17/11/2020,07 EQUIPMENT,OPERATIONS,SWALE TECHNOLOGIES LTD,448763,9900,530846451
BIS,Met Office,25/11/2020,07 EQUIPMENT,OPERATIONS,SWALE TECHNOLOGIES LTD,10009,294108.98,530846451
BIS,Met Office,10/11/2020,07 EQUIPMENT,OPERATIONS,Trinity House,445949,34.04,243120414
BIS,Met Office,10/11/2020,07 EQUIPMENT,OPERATIONS,Trinity House,445949,3644.13,243120414
BIS,Met Office,10/11/2020,12 INTERNATIONAL,OPERATIONS,TRIPOS CONSULTANTS,448564,3142.56,610652671
BIS,Met Office,26/11/2020,11 SERVICES,OPERATIONS,UNIVERSITY OF EXETER,449369,4774.05,142047795
BIS,Met Office,17/11/2020,11 SERVICES,OPERATIONS,UNIVERSITY OF YORK,449012,702,647200541
BIS,Met Office,25/11/2020,STOCK,OPERATIONS,VAISALA OYJ,21913,0,FI01244162
BIS,Met Office,25/11/2020,STOCK,OPERATIONS,VAISALA OYJ,21913,5023,FI01244162
BIS,Met Office,10/11/2020,04 CONTRACTORS,OPERATIONS,WA CONSULTANTS LTD,448618,13062.5,876328977
BIS,Met Office,17/11/2020,11 SERVICES,OPERATIONS,WORLDPAY (UK) LTD,448265,39.18,991280207
BIS,Met Office,17/11/2020,11 SERVICES,OPERATIONS,WORLDPAY (UK) LTD,448268,43.62,991280207
BIS,Met Office,17/11/2020,11 SERVICES,OPERATIONS,WORLDPAY (UK) LTD,448267,46.36,991280207
BIS,Met Office,17/11/2020,11 SERVICES,OPERATIONS,WORLDPAY (UK) LTD,448269,53.8,991280207
BIS,Met Office,17/11/2020,11 SERVICES,OPERATIONS,WORLDPAY (UK) LTD,448275,60.62,991280207
BIS,Met Office,17/11/2020,11 SERVICES,OPERATIONS,WORLDPAY (UK) LTD,448266,74.01,991280207
BIS,Met Office,17/11/2020,11 SERVICES,OPERATIONS,WORLDPAY (UK) LTD,448264,1276,991280207
BIS,Met Office,05/11/2020,11 SERVICES,OPERATIONS,WORLDPAY LTD,448518,22.75,991280207
BIS,Met Office,03/11/2020,11 SERVICES,OPERATIONS,YOUNG CALIBRATION LIMITED,448419,10,673900720
BIS,Met Office,26/11/2020,11 SERVICES,OPERATIONS,YOUNG CALIBRATION LIMITED,449392,10,673900720
BIS,Met Office,03/11/2020,10 EQUIPMENT MAINTENANCE,OPERATIONS,YOUNG CALIBRATION LIMITED,448419,2400,673900720
BIS,Met Office,26/11/2020,10 EQUIPMENT MAINTENANCE,OPERATIONS,YOUNG CALIBRATION LIMITED,449392,3250,673900720
BIS,Met Office,24/11/2020,TRADE CREDITORS,OTHER,NATWEST COMMERCIAL CARDS DIVISION,449258,118407.03,N/A
BIS,Met Office,26/11/2020,PAYE AND VAT,OTHER,RIVEROAK MSE LIMITED,448347,0,326 084 707
BIS,Met Office,12/11/2020,13 MISCELLANEOUS,SCIENCE,AB MULTIMEDIA LTD,448584,7200,849333502
BIS,Met Office,19/11/2020,11 SERVICES,SCIENCE,BRUNEL SHIPPING & LINER SERVICES LTD,449093,4290,-
BIS,Met Office,24/11/2020,11 SERVICES,SCIENCE,JISC COLLECTIONS & JANET LTD,449109,69346.93,614944238
BIS,Met Office,26/11/2020,11 SERVICES,SCIENCE,LAUGHING PHOENIX LTD,449363,1200,989 4469 37
BIS,Met Office,18/11/2020,11 SERVICES,SCIENCE,SOUTH AFRICAN WEATHER SERVICES,446691,1767.57,-
BIS,Met Office,26/11/2020,13 MISCELLANEOUS,SCIENCE,SPRINGER NATURE LIMITED,449319,22216,199440621
BIS,Met Office,17/11/2020,11 SERVICES,SCIENCE,University College London,448859,25000,524371168
BIS,Met Office,26/11/2020,11 SERVICES,SCIENCE,UNIVERSITY OF EXETER,449369,4774.05,142047795
BIS,Met Office,26/11/2020,11 SERVICES,SCIENCE,University Of Leeds,449437,100000,613451470
BIS,Met Office,24/11/2020,11 SERVICES,SCIENCE,University Of Leeds,449181,125000,613451470
BIS,Met Office,26/11/2020,11 SERVICES,SCIENCE,UNIVERSITY OF OXFORD,449332,-2000,125506730
BIS,Met Office,05/11/2020,13 MISCELLANEOUS,SCIENCE,UNIVERSITY OF OXFORD,448439,1000,125506730
BIS,Met Office,12/11/2020,13 MISCELLANEOUS,SCIENCE,UNIVERSITY OF OXFORD,448857,1000,125506730
BIS,Met Office,26/11/2020,11 SERVICES,SCIENCE,UNIVERSITY OF OXFORD,449331,1000,125506730
BIS,Met Office,26/11/2020,11 SERVICES,SCIENCE,UNIVERSITY OF OXFORD,448396,2000,125506730
BIS,Met Office,17/11/2020,13 MISCELLANEOUS,SCIENCE,UNIVERSITY OF OXFORD,448855,2000,125506730
BIS,Met Office,24/11/2020,13 MISCELLANEOUS,SCIENCE,UNIVERSITY OF OXFORD,449159,2000,125506730
BIS,Met Office,12/11/2020,13 MISCELLANEOUS,SCIENCE,University Of Surrey,448749,1000,688953065
BIS,Met Office,17/11/2020,04 CONTRACTORS,SCIENCE,WA CONSULTANTS LTD,448982,5450,876328977
BIS,Met Office,05/11/2020,11 SERVICES,STRATEGIC INVESTMENT,494 CONSULTING,448475,850,332819305
BIS,Met Office,24/11/2020,11 SERVICES,STRATEGIC INVESTMENT,BAE SYSTEMS APPLIED INTELLIGENCE LIMITED,449133,9900,GB641407169
BIS,Met Office,03/11/2020,11 SERVICES,STRATEGIC INVESTMENT,BAE SYSTEMS APPLIED INTELLIGENCE LIMITED,448422,21367.5,GB641407169
BIS,Met Office,26/11/2020,11 SERVICES,STRATEGIC INVESTMENT,BJSS LIMITED,449342,9562.5,613295452
BIS,Met Office,24/11/2020,04 CONTRACTORS,STRATEGIC INVESTMENT,BJSS LIMITED,449100,18700,613295452
BIS,Met Office,12/11/2020,11 SERVICES,STRATEGIC INVESTMENT,CACI LTD,448568,1422,380609841
BIS,Met Office,12/11/2020,INFORMATION TECHNOLOGY,STRATEGIC INVESTMENT,Campbell Scientific Ltd,448777,298,428453933
BIS,Met Office,12/11/2020,11 SERVICES,STRATEGIC INVESTMENT,Campbell Scientific Ltd,448777,1552.5,428453933
BIS,Met Office,10/11/2020,05 CONSULTANTS,STRATEGIC INVESTMENT,CMC PARTNERSHIP CONSULTANCY LTD,448651,9709,305803330
BIS,Met Office,10/11/2020,05 CONSULTANTS,STRATEGIC INVESTMENT,CMC PARTNERSHIP CONSULTANCY LTD,448650,20790,305803330
BIS,Met Office,12/11/2020,11 SERVICES,STRATEGIC INVESTMENT,ELASTICSEARCH LTD,448854,7344.52,155790484
BIS,Met Office,10/11/2020,11 SERVICES,STRATEGIC INVESTMENT,EQUINITI ICS LTD,448692,24650,915967778
BIS,Met Office,11/11/2020,13 MISCELLANEOUS,STRATEGIC INVESTMENT,ESSL,21988,3450,DE252519763
BIS,Met Office,25/11/2020,11 SERVICES,STRATEGIC INVESTMENT,"IBL SOFTWARE ENGINEERING, SPOL S.R.O.",448738,2636.47,SK2020241883
BIS,Met Office,26/11/2020,11 SERVICES,STRATEGIC INVESTMENT,INSTITUTE OF DIRECTORS,449261,14650,239119361
BIS,Met Office,05/11/2020,04 CONTRACTORS,STRATEGIC INVESTMENT,OUTSOURCE UK LIMITED,448443,2358.95,576118722
BIS,Met Office,26/11/2020,04 CONTRACTORS,STRATEGIC INVESTMENT,OUTSOURCE UK LIMITED,449468,2358.95,576118722
BIS,Met Office,05/11/2020,04 CONTRACTORS,STRATEGIC INVESTMENT,OUTSOURCE UK LIMITED,448529,4500,576118722
BIS,Met Office,05/11/2020,04 CONTRACTORS,STRATEGIC INVESTMENT,OUTSOURCE UK LIMITED,448456,5962.5,576118722
BIS,Met Office,10/11/2020,04 CONTRACTORS,STRATEGIC INVESTMENT,OUTSOURCE UK LIMITED,448565,7076.85,576118722
BIS,Met Office,03/11/2020,04 CONTRACTORS,STRATEGIC INVESTMENT,OUTSOURCE UK LIMITED,447821,7384.65,576118722
BIS,Met Office,05/11/2020,04 CONTRACTORS,STRATEGIC INVESTMENT,OUTSOURCE UK LIMITED,448453,8903.16,576118722
BIS,Met Office,03/11/2020,04 CONTRACTORS,STRATEGIC INVESTMENT,QUALSERV CONSULTING LTD,448433,1723.95,719067718
BIS,Met Office,03/11/2020,04 CONTRACTORS,STRATEGIC INVESTMENT,QUALSERV CONSULTING LTD,448416,1750,719067718
BIS,Met Office,10/11/2020,04 CONTRACTORS,STRATEGIC INVESTMENT,QUALSERV CONSULTING LTD,448681,2700,719067718
BIS,Met Office,03/11/2020,04 CONTRACTORS,STRATEGIC INVESTMENT,QUALSERV CONSULTING LTD,448433,5171.85,719067718
BIS,Met Office,10/11/2020,04 CONTRACTORS,STRATEGIC INVESTMENT,QUALSERV CONSULTING LTD,448681,6273.3,719067718
BIS,Met Office,03/11/2020,04 CONTRACTORS,STRATEGIC INVESTMENT,QUALSERV CONSULTING LTD,448410,6275.08,719067718
BIS,Met Office,03/11/2020,04 CONTRACTORS,STRATEGIC INVESTMENT,QUALSERV CONSULTING LTD,448430,7000,719067718
BIS,Met Office,12/11/2020,04 CONTRACTORS,STRATEGIC INVESTMENT,QUALSERV CONSULTING LTD,448758,8964.4,719067718
BIS,Met Office,12/11/2020,04 CONTRACTORS,STRATEGIC INVESTMENT,REED,448835,7200,835515525
BIS,Met Office,12/11/2020,04 CONTRACTORS,STRATEGIC INVESTMENT,ROWE IT LTD,448780,17250,924964394
BIS,Met Office,12/11/2020,11 SERVICES,STRATEGIC INVESTMENT,ROWE IT LTD,448688,92100,924964394
BIS,Met Office,10/11/2020,04 CONTRACTORS,STRATEGIC INVESTMENT,SOLOS CONSULTANTS LTD,448604,6019.2,812035476
BIS,Met Office,10/11/2020,04 CONTRACTORS,STRATEGIC INVESTMENT,SOLOS CONSULTANTS LTD,448638,8538.98,812035476
BIS,Met Office,10/11/2020,04 CONTRACTORS,STRATEGIC INVESTMENT,SOLOS CONSULTANTS LTD,448647,8756.8,812035476
BIS,Met Office,10/11/2020,04 CONTRACTORS,STRATEGIC INVESTMENT,SOLOS CONSULTANTS LTD,448648,8988.4,812035476
BIS,Met Office,10/11/2020,04 CONTRACTORS,STRATEGIC INVESTMENT,SOLOS CONSULTANTS LTD,448625,10920,812035476
BIS,Met Office,10/11/2020,04 CONTRACTORS,STRATEGIC INVESTMENT,SOLOS CONSULTANTS LTD,448610,13000,812035476
BIS,Met Office,10/11/2020,04 CONTRACTORS,STRATEGIC INVESTMENT,SOLOS CONSULTANTS LTD,448613,13886,812035476
BIS,Met Office,10/11/2020,04 CONTRACTORS,STRATEGIC INVESTMENT,SOLOS CONSULTANTS LTD,448611,14820,812035476
BIS,Met Office,10/11/2020,04 CONTRACTORS,STRATEGIC INVESTMENT,SOLOS CONSULTANTS LTD,448599,17680,812035476
BIS,Met Office,25/11/2020,11 SERVICES,STRATEGIC INVESTMENT,UCAR INCOMING PAYMENTS,9976,9028.52,-
BIS,Met Office,10/11/2020,04 CONTRACTORS,STRATEGIC INVESTMENT,WA CONSULTANTS LTD,448617,10088.03,876328977
BIS,Met Office,10/11/2020,04 CONTRACTORS,STRATEGIC INVESTMENT,WA CONSULTANTS LTD,448583,10940.5,876328977
BIS,Met Office,10/11/2020,04 CONTRACTORS,STRATEGIC INVESTMENT,WA CONSULTANTS LTD,448622,12382.51,876328977
BIS,Met Office,10/11/2020,04 CONTRACTORS,STRATEGIC INVESTMENT,WA CONSULTANTS LTD,448592,16500,876328977
BIS,Met Office,24/11/2020,11 SERVICES,SUPERCOMPUTING,Arup,449127,4472.99,524461265
BIS,Met Office,26/11/2020,11 SERVICES,SUPERCOMPUTING,HOGAN LOVELLS INTERNATIONAL LLP,449335,1586.99,GB123371543
BIS,Met Office,26/11/2020,11 SERVICES,SUPERCOMPUTING,HOGAN LOVELLS INTERNATIONAL LLP,449334,9044.48,GB123371543
BIS,Met Office,26/11/2020,11 SERVICES,SUPERCOMPUTING,HOGAN LOVELLS INTERNATIONAL LLP,449335,10276.84,GB123371543
BIS,Met Office,26/11/2020,11 SERVICES,SUPERCOMPUTING,HOGAN LOVELLS INTERNATIONAL LLP,449335,10665.64,GB123371543
BIS,Met Office,26/11/2020,11 SERVICES,SUPERCOMPUTING,HOGAN LOVELLS INTERNATIONAL LLP,449335,42640.98,GB123371543
BIS,Met Office,26/11/2020,11 SERVICES,SUPERCOMPUTING,HOGAN LOVELLS INTERNATIONAL LLP,449335,47522.17,GB123371543
BIS,Met Office,26/11/2020,11 SERVICES,SUPERCOMPUTING,HOGAN LOVELLS INTERNATIONAL LLP,449335,261059.37,GB123371543
BIS,Met Office,24/11/2020,04 CONTRACTORS,SUPERCOMPUTING,WA CONSULTANTS LTD,449204,19584.6,876328977
BIS,Met Office,12/11/2020,11 SERVICES,TECHNOLOGY,AKAMAI TECHNOLOGIES LTD,448569,4918.08,745091237
BIS,Met Office,12/11/2020,11 SERVICES,TECHNOLOGY,AKAMAI TECHNOLOGIES LTD,448569,25819.95,745091237
BIS,Met Office,25/11/2020,11 SERVICES,TECHNOLOGY,AMAZON WEB SERVICES INC.,10007,0.52,N/A
BIS,Met Office,04/11/2020,11 SERVICES,TECHNOLOGY,AMAZON WEB SERVICES INC.,9963,17322.88,N/A
BIS,Met Office,04/11/2020,11 SERVICES,TECHNOLOGY,AMAZON WEB SERVICES INC.,9959,98361.83,N/A
BIS,Met Office,03/11/2020,11 SERVICES,TECHNOLOGY,BAE SYSTEMS APPLIED INTELLIGENCE LIMITED,446926,2705.2,GB641407169
BIS,Met Office,26/11/2020,11 SERVICES,TECHNOLOGY,BAE SYSTEMS APPLIED INTELLIGENCE LIMITED,449116,6930,GB641407169
BIS,Met Office,03/11/2020,11 SERVICES,TECHNOLOGY,BAE SYSTEMS APPLIED INTELLIGENCE LIMITED,447953,8580,GB641407169
BIS,Met Office,03/11/2020,11 SERVICES,TECHNOLOGY,BAE SYSTEMS APPLIED INTELLIGENCE LIMITED,447952,9240,GB641407169
BIS,Met Office,03/11/2020,11 SERVICES,TECHNOLOGY,BAE SYSTEMS APPLIED INTELLIGENCE LIMITED,447951,9738.72,GB641407169
BIS,Met Office,26/11/2020,11 SERVICES,TECHNOLOGY,BAE SYSTEMS APPLIED INTELLIGENCE LIMITED,449117,11902.88,GB641407169
BIS,Met Office,26/11/2020,11 SERVICES,TECHNOLOGY,BAE SYSTEMS APPLIED INTELLIGENCE LIMITED,449160,13200,GB641407169
BIS,Met Office,03/11/2020,11 SERVICES,TECHNOLOGY,BAE SYSTEMS APPLIED INTELLIGENCE LIMITED,447954,15138.42,GB641407169
BIS,Met Office,26/11/2020,11 SERVICES,TECHNOLOGY,BAE SYSTEMS APPLIED INTELLIGENCE LIMITED,449118,17462.57,GB641407169
BIS,Met Office,26/11/2020,11 SERVICES,TECHNOLOGY,BAE SYSTEMS APPLIED INTELLIGENCE LIMITED,449115,22110.88,GB641407169
BIS,Met Office,04/11/2020,11 SERVICES,TECHNOLOGY,BLOOMREACH B.V.,447423,13731.99,NL815260076B01
BIS,Met Office,12/11/2020,08 SOFTWARE LICENCES,TECHNOLOGY,BOXXE,448776,132,734245248
BIS,Met Office,12/11/2020,08 SOFTWARE LICENCES,TECHNOLOGY,BOXXE,448776,352,734245248
BIS,Met Office,26/11/2020,08 SOFTWARE LICENCES,TECHNOLOGY,BOXXE,449358,1059.25,734245248
BIS,Met Office,26/11/2020,08 SOFTWARE LICENCES,TECHNOLOGY,BOXXE,449358,8185.12,734245248
BIS,Met Office,26/11/2020,08 SOFTWARE LICENCES,TECHNOLOGY,BOXXE,449358,12277.68,734245248
BIS,Met Office,26/11/2020,11 SERVICES,TECHNOLOGY,CANON UK LTD,449457,1250,523797128
BIS,Met Office,26/11/2020,11 SERVICES,TECHNOLOGY,CLOUDREACH EUROPE LIMITED,449353,9065.48,978187168
BIS,Met Office,24/11/2020,08 SOFTWARE LICENCES,TECHNOLOGY,CODILITY LIMITED,449178,5500,GB981191408
BIS,Met Office,03/11/2020,08 SOFTWARE LICENCES,TECHNOLOGY,DILIGENT BOARDBOOKS LIMITED,448115,70,929451011
BIS,Met Office,18/11/2020,13 MISCELLANEOUS,TECHNOLOGY,ERCIM,21792,7202.22,FR07388389421
BIS,Met Office,03/11/2020,08 SOFTWARE LICENCES,TECHNOLOGY,Esri (Uk) Ltd,448418,828.87,787430791
BIS,Met Office,12/11/2020,04 CONTRACTORS,TECHNOLOGY,FDM GROUP LIMITED,448734,1500,583540529
BIS,Met Office,10/11/2020,04 CONTRACTORS,TECHNOLOGY,FDM GROUP LIMITED,448631,4050,583540529
BIS,Met Office,10/11/2020,04 CONTRACTORS,TECHNOLOGY,FDM GROUP LIMITED,448634,5130,583540529
BIS,Met Office,10/11/2020,04 CONTRACTORS,TECHNOLOGY,FDM GROUP LIMITED,448632,5940,583540529
BIS,Met Office,12/11/2020,04 CONTRACTORS,TECHNOLOGY,FDM GROUP LIMITED,448735,5940,583540529
BIS,Met Office,10/11/2020,04 CONTRACTORS,TECHNOLOGY,FDM GROUP LIMITED,448642,6345,583540529
BIS,Met Office,05/11/2020,11 SERVICES,TECHNOLOGY,FLYFORM LTD,448530,1990,237333808
BIS,Met Office,05/11/2020,11 SERVICES,TECHNOLOGY,FLYFORM LTD,448510,3980,237333808
BIS,Met Office,05/11/2020,11 SERVICES,TECHNOLOGY,FLYFORM LTD,448509,9950,237333808
BIS,Met Office,26/11/2020,04 CONTRACTORS,TECHNOLOGY,GCS IT RECRUITMENT SPECIALISTS LTD,449321,1365,896156575
BIS,Met Office,26/11/2020,04 CONTRACTORS,TECHNOLOGY,GCS IT RECRUITMENT SPECIALISTS LTD,449322,10010,896156575
BIS,Met Office,12/11/2020,04 CONTRACTORS,TECHNOLOGY,GCS IT RECRUITMENT SPECIALISTS LTD,448826,15000,896156575
BIS,Met Office,12/11/2020,04 CONTRACTORS,TECHNOLOGY,HAYS SPECIALIST RECRUITMENT LTD,448744,453,773695871
BIS,Met Office,24/11/2020,04 CONTRACTORS,TECHNOLOGY,HAYS SPECIALIST RECRUITMENT LTD,449125,475.65,773695871
BIS,Met Office,24/11/2020,04 CONTRACTORS,TECHNOLOGY,HAYS SPECIALIST RECRUITMENT LTD,449121,558.7,773695871
BIS,Met Office,26/11/2020,04 CONTRACTORS,TECHNOLOGY,HAYS SPECIALIST RECRUITMENT LTD,449404,558.7,773695871
BIS,Met Office,26/11/2020,04 CONTRACTORS,TECHNOLOGY,HAYS SPECIALIST RECRUITMENT LTD,449427,558.7,773695871
BIS,Met Office,12/11/2020,04 CONTRACTORS,TECHNOLOGY,HAYS SPECIALIST RECRUITMENT LTD,448746,558.71,773695871
BIS,Met Office,24/11/2020,04 CONTRACTORS,TECHNOLOGY,HAYS SPECIALIST RECRUITMENT LTD,449137,558.71,773695871
BIS,Met Office,24/11/2020,04 CONTRACTORS,TECHNOLOGY,HAYS SPECIALIST RECRUITMENT LTD,449139,566.25,773695871
BIS,Met Office,19/11/2020,10 EQUIPMENT MAINTENANCE,TECHNOLOGY,Hewlett Packard Ltd,449038,1599.6,314149679
BIS,Met Office,19/11/2020,10 EQUIPMENT MAINTENANCE,TECHNOLOGY,Hewlett Packard Ltd,449039,1882.8,314149679
BIS,Met Office,19/11/2020,10 EQUIPMENT MAINTENANCE,TECHNOLOGY,Hewlett Packard Ltd,449037,2599.29,314149679
BIS,Met Office,04/11/2020,08 SOFTWARE LICENCES,TECHNOLOGY,"IBL SOFTWARE ENGINEERING, SPOL S.R.O.",447775,7596.26,SK2020241883
BIS,Met Office,04/11/2020,08 SOFTWARE LICENCES,TECHNOLOGY,"IBL SOFTWARE ENGINEERING, SPOL S.R.O.",447775,30812.88,SK2020241883
BIS,Met Office,26/11/2020,11 SERVICES,TECHNOLOGY,IBM UNITED KINGDOM LTD,449323,6062.7,107328000
BIS,Met Office,10/11/2020,08 SOFTWARE LICENCES,TECHNOLOGY,IBM UNITED KINGDOM LTD,448570,12393.7,107328000
BIS,Met Office,05/11/2020,11 SERVICES,TECHNOLOGY,INNOSIS LIMITED,448523,4557,-
BIS,Met Office,24/11/2020,10 EQUIPMENT MAINTENANCE,TECHNOLOGY,JISC COLLECTIONS & JANET LTD,449109,0.03,614944238
BIS,Met Office,24/11/2020,11 SERVICES,TECHNOLOGY,JISC COLLECTIONS & JANET LTD,449109,103847.04,614944238
BIS,Met Office,19/11/2020,11 SERVICES,TECHNOLOGY,NTT DATA UK LTD,448673,25468.31,GB159334590
BIS,Met Office,12/11/2020,04 CONTRACTORS,TECHNOLOGY,OUTSOURCE UK LIMITED,448774,1591.4,576118722
BIS,Met Office,05/11/2020,04 CONTRACTORS,TECHNOLOGY,OUTSOURCE UK LIMITED,448459,2589.75,576118722
BIS,Met Office,12/11/2020,04 CONTRACTORS,TECHNOLOGY,OUTSOURCE UK LIMITED,448775,3000,576118722
BIS,Met Office,05/11/2020,04 CONTRACTORS,TECHNOLOGY,OUTSOURCE UK LIMITED,448445,4256.5,576118722
BIS,Met Office,05/11/2020,04 CONTRACTORS,TECHNOLOGY,OUTSOURCE UK LIMITED,448446,4462.4,576118722
BIS,Met Office,10/11/2020,04 CONTRACTORS,TECHNOLOGY,OUTSOURCE UK LIMITED,448566,4774.2,576118722
BIS,Met Office,10/11/2020,04 CONTRACTORS,TECHNOLOGY,OUTSOURCE UK LIMITED,448448,5163.06,576118722
BIS,Met Office,05/11/2020,04 CONTRACTORS,TECHNOLOGY,OUTSOURCE UK LIMITED,448463,6235.84,576118722
BIS,Met Office,05/11/2020,04 CONTRACTORS,TECHNOLOGY,OUTSOURCE UK LIMITED,448452,6693.6,576118722
BIS,Met Office,10/11/2020,04 CONTRACTORS,TECHNOLOGY,OUTSOURCE UK LIMITED,448460,7769.25,576118722
BIS,Met Office,26/11/2020,04 CONTRACTORS,TECHNOLOGY,OUTSOURCE UK LIMITED,449465,8032.32,576118722
BIS,Met Office,05/11/2020,04 CONTRACTORS,TECHNOLOGY,OUTSOURCE UK LIMITED,448461,8205.2,576118722
BIS,Met Office,26/11/2020,04 CONTRACTORS,TECHNOLOGY,OUTSOURCE UK LIMITED,449467,8255.44,576118722
BIS,Met Office,05/11/2020,04 CONTRACTORS,TECHNOLOGY,OUTSOURCE UK LIMITED,448476,9000,576118722
BIS,Met Office,05/11/2020,04 CONTRACTORS,TECHNOLOGY,OUTSOURCE UK LIMITED,448462,9307.65,576118722
BIS,Met Office,05/11/2020,04 CONTRACTORS,TECHNOLOGY,OUTSOURCE UK LIMITED,448444,9548.64,576118722
BIS,Met Office,05/11/2020,04 CONTRACTORS,TECHNOLOGY,OUTSOURCE UK LIMITED,448441,10000,576118722
BIS,Met Office,05/11/2020,04 CONTRACTORS,TECHNOLOGY,OUTSOURCE UK LIMITED,448447,11092.4,576118722
BIS,Met Office,26/11/2020,04 CONTRACTORS,TECHNOLOGY,OUTSOURCE UK LIMITED,449466,11113.05,576118722
BIS,Met Office,05/11/2020,04 CONTRACTORS,TECHNOLOGY,OUTSOURCE UK LIMITED,448449,13000,576118722
BIS,Met Office,05/11/2020,04 CONTRACTORS,TECHNOLOGY,OUTSOURCE UK LIMITED,448454,16150,576118722
BIS,Met Office,12/11/2020,11 SERVICES,TECHNOLOGY,QA LTD,448782,2252,864455303
BIS,Met Office,03/11/2020,04 CONTRACTORS,TECHNOLOGY,QUALSERV CONSULTING LTD,448432,6721.9,719067718
BIS,Met Office,03/11/2020,04 CONTRACTORS,TECHNOLOGY,QUALSERV CONSULTING LTD,448429,7000,719067718
BIS,Met Office,12/11/2020,04 CONTRACTORS,TECHNOLOGY,QUALSERV CONSULTING LTD,448764,9771.8,719067718
BIS,Met Office,03/11/2020,04 CONTRACTORS,TECHNOLOGY,QUALSERV CONSULTING LTD,448431,10287,719067718
BIS,Met Office,10/11/2020,04 CONTRACTORS,TECHNOLOGY,QUALSERV CONSULTING LTD,448682,10457.64,719067718
BIS,Met Office,03/11/2020,04 CONTRACTORS,TECHNOLOGY,QUALSERV CONSULTING LTD,448417,11248,719067718
BIS,Met Office,12/11/2020,04 CONTRACTORS,TECHNOLOGY,REED,448835,4737,835515525
BIS,Met Office,12/11/2020,04 CONTRACTORS,TECHNOLOGY,REED,448835,6880.5,835515525
BIS,Met Office,12/11/2020,04 CONTRACTORS,TECHNOLOGY,REED,448835,9186,835515525
BIS,Met Office,12/11/2020,04 CONTRACTORS,TECHNOLOGY,REED,448835,9639,835515525
BIS,Met Office,17/11/2020,11 SERVICES,TECHNOLOGY,SEC-1 LTD,448538,2925,777853369
BIS,Met Office,18/11/2020,08 SOFTWARE LICENCES,TECHNOLOGY,SIGNAVIO GMBH,446422,96039.5,DE265675123
BIS,Met Office,10/11/2020,11 SERVICES,TECHNOLOGY,SILICON REEF LTD,447377,211117,GB 254 7458 79
BIS,Met Office,10/11/2020,04 CONTRACTORS,TECHNOLOGY,SOLOS CONSULTANTS LTD,448646,4400,812035476
BIS,Met Office,10/11/2020,04 CONTRACTORS,TECHNOLOGY,SOLOS CONSULTANTS LTD,448596,8025.6,812035476
BIS,Met Office,10/11/2020,04 CONTRACTORS,TECHNOLOGY,SOLOS CONSULTANTS LTD,448614,8056,812035476
BIS,Met Office,10/11/2020,04 CONTRACTORS,TECHNOLOGY,SOLOS CONSULTANTS LTD,448594,8200,812035476
BIS,Met Office,10/11/2020,04 CONTRACTORS,TECHNOLOGY,SOLOS CONSULTANTS LTD,448608,8925.2,812035476
BIS,Met Office,10/11/2020,04 CONTRACTORS,TECHNOLOGY,SOLOS CONSULTANTS LTD,448636,8992.62,812035476
BIS,Met Office,10/11/2020,04 CONTRACTORS,TECHNOLOGY,SOLOS CONSULTANTS LTD,448649,8999.1,812035476
BIS,Met Office,10/11/2020,04 CONTRACTORS,TECHNOLOGY,SOLOS CONSULTANTS LTD,448598,9360,812035476
BIS,Met Office,10/11/2020,04 CONTRACTORS,TECHNOLOGY,SOLOS CONSULTANTS LTD,448653,9750,812035476
BIS,Met Office,10/11/2020,04 CONTRACTORS,TECHNOLOGY,SOLOS CONSULTANTS LTD,448609,10600,812035476
BIS,Met Office,10/11/2020,04 CONTRACTORS,TECHNOLOGY,SOLOS CONSULTANTS LTD,448639,11398.86,812035476
BIS,Met Office,10/11/2020,04 CONTRACTORS,TECHNOLOGY,SOLOS CONSULTANTS LTD,448606,11505.45,812035476
BIS,Met Office,10/11/2020,04 CONTRACTORS,TECHNOLOGY,SOLOS CONSULTANTS LTD,447531,11756.25,812035476
BIS,Met Office,10/11/2020,04 CONTRACTORS,TECHNOLOGY,SOLOS CONSULTANTS LTD,448645,12168,812035476
BIS,Met Office,10/11/2020,04 CONTRACTORS,TECHNOLOGY,SOLOS CONSULTANTS LTD,448630,12905.75,812035476
BIS,Met Office,10/11/2020,04 CONTRACTORS,TECHNOLOGY,SOLOS CONSULTANTS LTD,448602,14107.6,812035476
BIS,Met Office,10/11/2020,04 CONTRACTORS,TECHNOLOGY,SOLOS CONSULTANTS LTD,448601,15675,812035476
BIS,Met Office,10/11/2020,04 CONTRACTORS,TECHNOLOGY,SOLOS CONSULTANTS LTD,448600,18720,812035476
BIS,Met Office,17/11/2020,11 SERVICES,TECHNOLOGY,SPRUCE CONSULTING,448918,850,724384923
BIS,Met Office,10/11/2020,11 SERVICES,TECHNOLOGY,SSE CONTRACTING LTD,448641,10137.45,570118464
BIS,Met Office,26/11/2020,08 SOFTWARE LICENCES,TECHNOLOGY,SYSTEMSUP LTD,449354,35490,751537235
BIS,Met Office,03/11/2020,11 SERVICES,TECHNOLOGY,UKCLOUD LTD,448426,1613.16,172647982
BIS,Met Office,10/11/2020,11 SERVICES,TECHNOLOGY,UKCLOUD LTD,448691,1658.4,172647982
BIS,Met Office,12/11/2020,04 CONTRACTORS,TECHNOLOGY,WA CONSULTANTS LTD,448824,-13625,876328977
BIS,Met Office,24/11/2020,04 CONTRACTORS,TECHNOLOGY,WA CONSULTANTS LTD,449199,1600,876328977
BIS,Met Office,24/11/2020,04 CONTRACTORS,TECHNOLOGY,WA CONSULTANTS LTD,449199,4700,876328977
BIS,Met Office,10/11/2020,04 CONTRACTORS,TECHNOLOGY,WA CONSULTANTS LTD,448590,5182.3,876328977
BIS,Met Office,24/11/2020,04 CONTRACTORS,TECHNOLOGY,WA CONSULTANTS LTD,449205,6160,876328977
BIS,Met Office,24/11/2020,04 CONTRACTORS,TECHNOLOGY,WA CONSULTANTS LTD,449202,6984.8,876328977
BIS,Met Office,10/11/2020,04 CONTRACTORS,TECHNOLOGY,WA CONSULTANTS LTD,448680,7479.75,876328977
BIS,Met Office,24/11/2020,04 CONTRACTORS,TECHNOLOGY,WA CONSULTANTS LTD,449198,7608.52,876328977
BIS,Met Office,10/11/2020,04 CONTRACTORS,TECHNOLOGY,WA CONSULTANTS LTD,448590,7800,876328977
BIS,Met Office,26/11/2020,04 CONTRACTORS,TECHNOLOGY,WA CONSULTANTS LTD,449443,8070.75,876328977
BIS,Met Office,10/11/2020,04 CONTRACTORS,TECHNOLOGY,WA CONSULTANTS LTD,448621,8503.64,876328977
BIS,Met Office,24/11/2020,04 CONTRACTORS,TECHNOLOGY,WA CONSULTANTS LTD,449201,10355,876328977
BIS,Met Office,10/11/2020,04 CONTRACTORS,TECHNOLOGY,WA CONSULTANTS LTD,448675,10500,876328977
BIS,Met Office,10/11/2020,04 CONTRACTORS,TECHNOLOGY,WA CONSULTANTS LTD,448623,11000,876328977
BIS,Met Office,10/11/2020,04 CONTRACTORS,TECHNOLOGY,WA CONSULTANTS LTD,448580,11309.13,876328977
BIS,Met Office,12/11/2020,04 CONTRACTORS,TECHNOLOGY,WA CONSULTANTS LTD,448765,11900,876328977
BIS,Met Office,19/11/2020,04 CONTRACTORS,TECHNOLOGY,WA CONSULTANTS LTD,446438,12495,876328977
BIS,Met Office,10/11/2020,04 CONTRACTORS,TECHNOLOGY,WA CONSULTANTS LTD,448626,12792.5,876328977
BIS,Met Office,10/11/2020,04 CONTRACTORS,TECHNOLOGY,WA CONSULTANTS LTD,448628,13451.25,876328977
BIS,Met Office,10/11/2020,04 CONTRACTORS,TECHNOLOGY,WA CONSULTANTS LTD,448619,13588,876328977
BIS,Met Office,12/11/2020,04 CONTRACTORS,TECHNOLOGY,WA CONSULTANTS LTD,448821,13592.44,876328977
BIS,Met Office,12/11/2020,04 CONTRACTORS,TECHNOLOGY,WA CONSULTANTS LTD,448591,13625,876328977
BIS,Met Office,10/11/2020,04 CONTRACTORS,TECHNOLOGY,WA CONSULTANTS LTD,448620,13867.73,876328977
BIS,Met Office,10/11/2020,04 CONTRACTORS,TECHNOLOGY,WA CONSULTANTS LTD,448588,14545.75,876328977
BIS,Met Office,10/11/2020,04 CONTRACTORS,TECHNOLOGY,WA CONSULTANTS LTD,448575,14832,876328977
BIS,Met Office,10/11/2020,04 CONTRACTORS,TECHNOLOGY,WA CONSULTANTS LTD,448582,16500,876328977
BIS,Met Office,24/11/2020,04 CONTRACTORS,TECHNOLOGY,WA CONSULTANTS LTD,449200,16800,876328977
BIS,Met Office,10/11/2020,04 CONTRACTORS,TECHNOLOGY,WA CONSULTANTS LTD,448589,17462,876328977
